Workbook

Sheet EN_PL

Sheet Intro
B3: Uwaga: | J3: Please note:
B5: W niniejszym pliku zaprezentowane są dane finansowe Grupy Asseco za kwartały lat 2020, 2019 i 2018. | J5: This workbook contains financial information of the Asseco Group for the quarters of the years 2018 and 2017.
B6: Objaśnienia:
B8: Arkusze oznaczone kolorem niebieskim zawierają P&L, Bilans i Rachunek przepływów pieniężnych (w tym Rachunek przepływów pieniężnych za okres ostatnich 12 miesięcy). W arkuszu Segments, znajdują się informacje dotyczące segmentów operacyjnych grupy. Arkusz RevenuesAndCosts zawiera dane uszczegóławiające do pozycji przychodów i kosztów operacyjnych. Kursy walut funkcjonalnych zagranicznych jednostek zależnych obowiązujące na dni bilansowe oraz kursy średnie stosowane w latach 2015-2020 zamieszczone są w arkuszu Exchange rates. | J8: The sheets marked with blue colour contain P&L, statement of financial position and the statement of cash flow of the Asseco Group. The Segments sheet contains data on the groups' operating segments. The RevenuesAndCosts sheet presents details for the items of revenues and operating costs. The exchange rates of the foreign subsidiaries' functional currencies as at the balance sheet date and the average exchange rates used in years 2015-2018 are presented in the Exchange Rates sheet.

Sheet PL
A1: P&L (Grupa Asseco) | B1: P&L (Asseco Group) | C1: Q1 2018 | D1: Q2 2018 | E1: Q3 2018 | F1: Q4 2018 | G1: Q1 2019 | H1: Q2 2019 | I1: Q3 2019 | J1: Q4 2019 | K1: Q1 2020 | L1: Q2 2020 | M1: Q3 2020 | N1: Q4 2020
C4: mln PLN | D4: mln PLN | E4: mln PLN | F4: mln PLN | G4: mln PLN | H4: mln PLN | I4: mln PLN | J4: mln PLN | K4: mln PLN | L4: mln PLN | M4: mln PLN | N4: mln PLN
A6: Działalność kontynuowana | B6: Continuing operations
A7: Przychody ze sprzedaży | B7: Sales revenues | C7: 2149 | D7: 2310.9 | E7: 2218.4 | F7: 2650.3 | G7: 2452.2 | H7: 2538.7 | I7: 2738.4 | J7: 2938.1 | K7: 2919.5 | L7: 2850 | M7: 2937.8 | N7: 3483
A9: Koszt własny sprzedaży (-) | B9: Cost of sales | C9: -1711.7 | D9: -1797.8 | E9: -1748.3 | F9: -2081.6 | G9: -1923.4 | H9: -1989.3 | I9: -2145.3 | J9: -2310 | K9: -2311.3 | L9: -2229.5 | M9: -2292.7 | N9: -2692.6
A11: Zysk brutto ze sprzedaży | B11: Gross profit on sales | C11: =SUM(C7:C9) -> 437.3 | D11: 513.1 | E11: 470.1 | F11: 568.7 | G11: =SUM(G7:G9) -> 528.8 | H11: =SUM(H7:H9) -> 549.4 | I11: 593.1 | J11: 628.1 | K11: 608.2 | L11: 620.5 | M11: 645.1 | N11: 790.4
A13: Koszty sprzedaży (-) | B13: Selling costs | C13: -118.4 | D13: -130.7 | E13: -120.3 | F13: -134.5 | G13: -130.2 | H13: -132.8 | I13: -147.3 | J13: -158 | K13: -148.1 | L13: -142.8 | M13: -145.2 | N13: -174
A14: Koszty ogólnego zarządu (-) | B14: General administrative expenses | C14: -147.8 | D14: -176.6 | E14: -161.8 | F14: -189.9 | G14: -168.9 | H14: -185.2 | I14: -184.7 | J14: -206.4 | K14: -205.1 | L14: -170.6 | M14: -196.9 | N14: -248.9
A16: Zysk netto ze sprzedaży | B16: Net profit on sales | C16: =SUM(C11,C13:C14) -> 171.1 | D16: 205.8 | E16: 188 | F16: =SUM(F11,F13:F14) -> 244.3 | G16: 229.7 | H16: 231.4 | I16: 261.1 | J16: 263.7 | K16: 255 | L16: 307.1 | M16: 303 | N16: 367.5
A18: Pozostałe przychody operacyjne* | B18: Other operating income* | C18: 8.6 | D18: 8.1 | E18: 16.6 | F18: 5.4 | G18: 11.9 | H18: 7.1 | I18: 11.3 | J18: 10.8 | K18: 8.9 | L18: 3.6 | M18: 7.2 | N18: 7.4
A19: Pozostałe koszty operacyjne (-)* | B19: Other operating expenses* | C19: -12.4 | D19: -10.1 | E19: -17 | F19: -11.6 | G19: -16.9 | H19: -9.6 | I19: -11.8 | J19: -14.1 | K19: -13.8 | L19: -7.3 | M19: -10.8 | N19: -12.4
A21: Zysk z działalności operacyjnej | B21: Operating profit | C21: =SUM(C16:C19) -> 167.3 | D21: 203.8 | E21: 187.6 | F21: 238.1 | G21: =SUM(G16:G19) -> 224.7 | H21: =SUM(H16:H19) -> 228.9 | I21: 260.6 | J21: 260.4 | K21: 250.1 | L21: 303.4 | M21: 299.4 | N21: 362.5
A23: Działalność finansowa | B23: Financial activity | C23: -6.1 | D23: -6.5 | E23: -9.6 | F23: -0.6 | G23: -24.6 | H23: -11 | I23: -29.9 | J23: -22.5 | K23: -20.1 | L23: -30.7 | M23: -34.4 | N23: -51.1
A25: Zysk przed opodatkowaniem i udziałem w wynikach jednostek stowarzyszonych | B25: Pre-tax profit and share in profits of associates | C25: =SUM(C20:C23) -> 161.2 | D25: 197.3 | E25: 178 | F25: 237.5 | G25: =SUM(G20:G23) -> 200.1 | H25: =SUM(H20:H23) -> 217.9 | I25: 230.7 | J25: 237.9 | K25: 230 | L25: 272.7 | M25: 265 | N25: 311.4
A27: Podatek dochodowy | B27: Corporate income tax | C27: -43.2 | D27: -45.2 | E27: -37 | F27: -56.9 | G27: -43.8 | H27: -48.2 | I27: -50.7 | J27: -47.9 | K27: -51.7 | L27: -62 | M27: -55.3 | N27: -46.8
A28: Udział w wynikach jednostek stowarzyszonych | B28: Share in profits of associates | C28: -1.4 | D28: -0.7 | E28: 0.3 | F28: 3.8 | G28: 0.9 | H28: -0.3 | I28: 1.2 | J28: 4.5 | K28: -1.8 | L28: 0.8 | M28: -1.9 | N28: 7.5
A30: Zysk z działalności kontynuowanej za okres sprawozdawczy | B30: Net profit for the period from continuing operations | C30: =SUM(C25,C27:C28) -> 116.6 | D30: 151.4 | E30: 141.3 | F30: 184.4 | G30: =SUM(G25,G27:G28) -> 157.2 | H30: =SUM(H25,H27:H28) -> 169.4 | I30: 181.2 | J30: 194.5 | K30: 176.5 | L30: 211.5 | M30: 207.8 | N30: 272.1
A32: Działalność zaniechana | B32: Discontinued operations
A33: Zysk z działalności zaniechanej za okres sprawozdawczy | B33: Net profit for the period from discontinued operations | C33: 0 | D33: 0 | E33: 0 | F33: 0 | G33: 0 | H33: 0 | I33: 0 | J33: 0 | K33: 0 | L33: 0 | M33: 0 | N33: 0
A35: Zysk za okres sprawozdawczy | B35: Net profit for the reporting period | C35: =C30+C33 -> 116.6 | D35: 151.4 | E35: =E30+E33 -> 141.3 | F35: =F30+F33 -> 184.4 | G35: =G30+G33 -> 157.2 | H35: =H30+H33 -> 169.4 | I35: =I30+I33 -> 181.2 | J35: 194.5 | K35: 176.5 | L35: 211.5 | M35: 207.8 | N35: 272.1
A36: Przypadający: | B36: Attributable to:
A37: Akcjonariuszom Jednostki Dominującej | B37: Shareholders of the Parent Company | C37: =C35-C38 -> 68.9 | D37: 88.4 | E37: 78 | F37: 98 | G37: =G35-G38 -> 79.6 | H37: =H35-H38 -> 80.1 | I37: 78.4 | J37: =J35-J38 -> 83.8 | K37: 81.7 | L37: 95.1 | M37: 90.9 | N37: 134.2
A38: Udziałowcom niekontrolującym | B38: Non-controling interests | C38: 47.7 | D38: 63 | E38: 63.3 | F38: 86.4 | G38: 77.6 | H38: 89.3 | I38: 102.8 | J38: 110.7 | K38: 94.8 | L38: 116.4 | M38: 116.9 | N38: 137.9
A40: *W ramach pozostałej działalności operacyjnej dokonano spersaldowania wyniku (przychodów i kosztów) na sprzedaży środków trwałych, wartości niematerialnych oraz aktywów z tytułu prawa do użytkowania | B40: * As part of other operating activities, the result (income and expenses) on the sale of property, plant and equipment, intangible assets and assets due to the right of use was offset.

Sheet BS
A1: Bilans (Grupa Asseco) | B1: Statement of financial position (Asseco Group) | C1: Q1 2018 | D1: Q2 2018 | E1: Q3 2018 | F1: Q4 2018 | G1: Q1 2019 | H1: Q2 2019 | I1: Q3 2019 | J1: Q4 2019 | K1: Q1 2020 | L1: Q2 2020 | M1: Q3 2020 | N1: Q4 2020
C4: mln PLN | D4: mln PLN | E4: mln PLN | F4: mln PLN | G4: mln PLN | H4: mln PLN | I4: mln PLN | J4: mln PLN | K4: mln PLN | L4: mln PLN | M4: mln PLN | N4: mln PLN
A7: Aktywa trwałe | B7: Non-current assets
A8: Rzeczowe aktywa trwałe | B8: Property, plant and equipment | C8: 832.3 | D8: 851.2 | E8: 838.4 | F8: 828.4 | G8: 767.3 | H8: 773.8 | I8: 825.9 | J8: 822.7 | K8: 863.3 | L8: 859.1 | M8: 892.5 | N8: 914.7
A9: Wartości niematerialne | B9: Intangible assets | C9: 2031.4 | D9: 2112.1 | E9: 2036.9 | F9: 1991 | G9: 2073.6 | H9: 2018.3 | I9: 2171.4 | J9: 2106.5 | K9: 2212.9 | L9: 2148.9 | M9: 2170.5 | N9: 2274
A10: Aktywa z tytułu prawa do użytkowania | B10: Right-to-use assets | C10: 0 | D10: 0 | E10: 0 | F10: 0 | G10: 655.3 | H10: 716.1 | I10: 738.7 | J10: 686.6 | K10: 708.3 | L10: 731.3 | M10: 678.6 | N10: 724.7
A11: Nieruchomości inwestycyjne | B11: Investment property | C11: 19.8 | D11: 20.1 | E11: 20.1 | F11: 21 | G11: 23.4 | H11: 24.2 | I11: 20.7 | J11: 20.6 | K11: 20.7 | L11: 17.4 | M11: 16.7 | N11: 18
A12: Wartość firmy | B12: Goodwill | C12: 4024.4 | D12: 4204.7 | E12: 4197.4 | F12: 4254 | G12: 4418.8 | H12: 4411.4 | I12: 4614.9 | J12: 4561.4 | K12: 4765.6 | L12: 4744.6 | M12: 4879.4 | N12: 5129.1
A13: Inwestycje wyceniane metodą praw własności | B13: Investments valued using equity method | C13: 97.6 | D13: 105 | E13: 102.9 | F13: 111.5 | G13: 133 | H13: 131 | I13: 139.6 | J13: 145 | K13: 160 | L13: 156.6 | M13: 152.3 | N13: 162.4
A14: Należności długoterminowe | B14: Long-term receivables | C14: 106.8 | D14: 118.9 | E14: 119.9 | F14: 127.5 | G14: 117.6 | H14: 107.5 | I14: 123.7 | J14: 110.3 | K14: 110.9 | L14: 90.9 | M14: 79.5 | N14: 94.2
A15: Aktywa z tytułu odroczonego pod. doch. | B15: Deferred income tax assets | C15: 77.9 | D15: 85.5 | E15: 76.4 | F15: 84.8 | G15: 93.2 | H15: 93.4 | I15: 102.3 | J15: 177.7 | K15: 200.4 | L15: 187.8 | M15: 189.1 | N15: 202.9
A16: Inne aktywa niefinansowe | B16: Other non-financial assets | C16: 0.1 | D16: 0.2 | E16: 0 | F16: 0.1 | G16: 0 | H16: 0 | I16: 0 | J16: 0.5 | K16: 0 | L16: 0 | M16: 0 | N16: 0
A17: Pozostałe długoterminowe aktywa finansowe | B17: Long-term financial assets | C17: 169.5 | D17: 176.8 | E17: 153.8 | F17: 175.1 | G17: 162.6 | H17: 150.9 | I17: 152.9 | J17: 142.2 | K17: 145.8 | L17: 143.3 | M17: 125 | N17: 128.7
A18: Długoterminowe rozliczenia międzyokresowe | B18: Long-term prepayments and accrued income | C18: 51.9 | D18: 53.4 | E18: 50.9 | F18: 59.2 | G18: 58.6 | H18: 64.1 | I18: 73.9 | J18: 68.4 | K18: 76.2 | L18: 71.7 | M18: 68.6 | N18: 101.6
C19: =SUM(C8:C18) -> 7411.7 | D19: 7727.9 | E19: 7596.7 | F19: 7652.6 | G19: =SUM(G8:G18) -> 8503.4 | H19: =SUM(H8:H18) -> 8490.7 | I19: 8964 | J19: 8841.9 | K19: 9264.1 | L19: 9151.6 | M19: 9252.2 | N19: 9750.3
A20: Aktywa obrotowe | B20: Current assets
A21: Zapasy | B21: Inventories | C21: 81.2 | D21: 76.9 | E21: 93.8 | F21: 94.3 | G21: 99.3 | H21: 111.2 | I21: 124.1 | J21: 122.6 | K21: 123.2 | L21: 136.6 | M21: 162.9 | N21: 186.9
A22: Rozliczenia międzyokresowe | B22: Prepayments and accrued income | C22: 179.4 | D22: 182 | E22: 172.7 | F22: 168.5 | G22: 232.2 | H22: 237 | I22: 254.6 | J22: 242.9 | K22: 297.2 | L22: 277.8 | M22: 267.8 | N22: 291.5
A23: Należności z tytułu dostaw i usług | B23: Trade receivables | C23: 2211.7 | D23: 2116.3 | E23: 2183.5 | F23: 2432.7 | G23: 2348.7 | H23: 2448.1 | I23: 2553.1 | J23: 2632.4 | K23: 2724.6 | L23: 2517.8 | M23: 2625.5 | N23: 2891.9
A24: Aktywa z tytułu umów z klientami | B24: Contract assets | C24: 0 | D24: 270.1 | E24: 262.9 | F24: 214.3 | G24: 279.7 | H24: 254.9 | I24: 286.4 | J24: 212.6 | K24: 278.7 | L24: 328.6 | M24: 347.9 | N24: 303.9
A25: Należności z tytułu podatku CIT | B25: Corporate income tax receivable | C25: 77.1 | D25: 57 | E25: 56.6 | F25: 47.6 | G25: 58.8 | H25: 69.4 | I25: 66.3 | J25: 71.5 | K25: 56.8 | L25: 61 | M25: 65.2 | N25: 100.9
A26: Należności budżetowe | B26: Receivables from the state and local budgets | C26: 25.6 | D26: 29.2 | E26: 32.8 | F26: 37.3 | G26: 34.6 | H26: 34.9 | I26: 35.4 | J26: 34.5 | K26: 36.4 | L26: 31.9 | M26: 30.1 | N26: 29.7
A27: Pozostałe należności | B27: Other receivables | C27: 43.9 | D27: 45.1 | E27: 48.9 | F27: 39.1 | G27: 367.8 | H27: 49.1 | I27: 68.1 | J27: 73.4 | K27: 81.3 | L27: 61.5 | M27: 60.5 | N27: 59.3
A28: Inne aktywa niefinansowe | B28: Other non-financial receivables | C28: 12.3 | D28: 9.2 | E28: 11 | F28: 9 | G28: 8 | H28: 12.3 | I28: 25.5 | J28: 12.8 | K28: 12.8 | L28: 13.9 | M28: 14.4 | N28: 7.5
A29: Pozostałe aktywa finansowe | B29: Financial assets | C29: 83.5 | D29: 67.3 | E29: 84.8 | F29: 139.3 | G29: 108.1 | H29: 108.9 | I29: 105.2 | J29: 194.8 | K29: 102.8 | L29: 73 | M29: 53.7 | N29: 186.6
A30: Środki pieniężne i depozyty krótkoterminowe | B30: Cash and short-term deposits | C30: 1546.7 | D30: 1447.4 | E30: 1604 | F30: 1800.5 | G30: 1853.6 | H30: 1867.5 | I30: 1927.4 | J30: 2153.5 | K30: 2634.8 | L30: 2489.4 | M30: 2392.7 | N30: 2896
A31: Aktywa długoterm. sklas. jako przezn. do sprzedaży | B31: Non-current assets classified as held for sale | C31: 7.4 | D31: 7.5 | E31: 9.6 | F31: 10.9 | G31: 8.4 | H31: 3.6 | I31: 1.5 | J31: 1.3 | K31: 1.3 | L31: 1.3 | M31: 1.3 | N31: 0
C32: =SUM(C21:C31) -> 4268.8 | D32: 4308 | E32: 4560.6 | F32: 4993.5 | G32: =SUM(G21:G31) -> 5399.2 | H32: =SUM(H21:H31) -> 5196.9 | I32: 5447.6 | J32: 5752.3 | K32: =SUM(K21:K31) -> 6349.9 | L32: =SUM(L21:L31) -> 5992.8 | M32: =SUM(M21:M31) -> 6022 | N32: =SUM(N21:N31) -> 6954.2
A34: SUMA AKTYWÓW | B34: TOTAL ASSETS | C34: =C32+C19 -> 11680.5 | D34: 12035.9 | E34: 12157.3 | F34: 12646.1 | G34: =G32+G19 -> 13902.6 | H34: 13687.6 | I34: 14411.6 | J34: 14594.2 | K34: 15614 | L34: =L32+L19 -> 15144.4 | M34: 15274.2 | N34: =N32+N19 -> 16704.5
A36: Kapitał własny (przypisany akcjonariuszom Jednostki Dominującej) | B36: Equity (attributable to shareholders of the Parent Company) | C36: 5615.9 | D36: 5574.7 | E36: 5604.6 | F36: 5717.7 | G36: 5818.8 | H36: 5608.7 | I36: 5748.1 | J36: 5764.9 | K36: 5956.9 | L36: 5765.2 | M36: 5844.5 | N36: 6044.4
A38: Udziały niekontrolujące | B38: Non-controlling interests | C38: 1660.6 | D38: 1784.8 | E38: 1867.8 | F38: 1944.6 | G38: 2080.4 | H38: 2054 | I38: 2211.1 | J38: 2218.9 | K38: 2385.7 | L38: 2342 | M38: 2372.6 | N38: 2912.9
A40: Kapitał własny ogółem | B40: Total equity | C40: =SUM(C36:C38) -> 7276.5 | D40: 7359.5 | E40: 7472.4 | F40: 7662.3 | G40: =SUM(G36:G38) -> 7899.2 | H40: =SUM(H36:H38) -> 7662.7 | I40: 7959.2 | J40: 7983.8 | K40: 8342.6 | L40: 8107.2 | M40: 8217.1 | N40: 8957.3
A42: Zobowiązania długoterminowe | B42: Non-current liabilities
A43: Oprocentowane kred. bankowe, poż., dłużne pap. wart. | B43: Interest-bearing bank loans, borrowing and debt securities | C43: 935.9 | D43: 911.7 | E43: 889.6 | F43: 1082.9 | G43: 1276.5 | H43: 1228 | I43: 1278 | J43: 1366.2 | K43: 1564.7 | L43: 1777.7 | M43: 1644 | N43: 1552.2
A44: Długoterminowe zob. z tyt. leasingu finansowego | B44: Long-term finance lease liabilities | C44: 45.1 | D44: 43.9 | E44: 37.4 | F44: 32.1 | G44: 478.1 | H44: 519.2 | I44: 526.2 | J44: 472.3 | K44: 506.9 | L44: 530.9 | M44: 501.2 | N44: 544.7
A45: Długoterminowe zob. finansowe | B45: Long-term financial liabilities | C45: 320.8 | D45: 256.4 | E45: 257.5 | F45: 180.3 | G45: 248.6 | H45: 227.4 | I45: 292 | J45: 234.6 | K45: 277.8 | L45: 174 | M45: 255.4 | N45: 184
A46: Rezerwy z tytułu odroczonego pod. doch. | B46: Deferred income tax liabilities | C46: 409.1 | D46: 424 | E46: 410.4 | F46: 410.7 | G46: 426.4 | H46: 415.3 | I46: 447.4 | J46: 479.6 | K46: 511.4 | L46: 494.7 | M46: 497.1 | N46: 529.6
A47: Długoterminowe rezerwy | B47: Long-term provisions | C47: 64.8 | D47: 66.7 | E47: 64.1 | F47: 67.9 | G47: 72.9 | H47: 75.9 | I47: 79.8 | J47: 81.9 | K47: 93.9 | L47: 93.5 | M47: 112.5 | N47: 109.7
A48: Długoterminowe rozliczenia międzyok. przych. | B48: Long-term deferred income | C48: 79.4 | D48: 43.4 | E48: 43.4 | F48: 43.3 | G48: 43.1 | H48: 43 | I48: 42 | J48: 41 | K48: 50.5 | L48: 54.7 | M48: 59.8 | N48: 64.7
A49: Pozostałe zobowiązania długoterminowe | B49: Other long-term liabilities | C49: 15.1 | D49: 47.2 | E49: 44.3 | F49: 46.9 | G49: 49.3 | H49: 44.8 | I49: 51.7 | J49: 70 | K49: 90 | L49: 92 | M49: 105.9 | N49: 142.6
C50: =SUM(C43:C49) -> 1870.2 | D50: 1793.3 | E50: 1746.7 | F50: 1864.1 | G50: =SUM(G43:G49) -> 2594.9 | H50: =SUM(H43:H49) -> 2553.6 | I50: 2717.1 | J50: 2745.6 | K50: 3095.2 | L50: 3217.5 | M50: 3175.9 | N50: =SUM(N43:N49) -> 3127.5
A51: Zobowiązania krótkoterminowe | B51: Current liabilities
A52: Oprocentowane kred. bankowe, poż., dłużne pap. wart. | B52: Interest-bearing bank loans, borrowing and debt securities | C52: 561 | D52: 724.3 | E52: 806.2 | F52: 581.6 | G52: 691.6 | H52: 786.5 | I52: 878.3 | J52: 689.4 | K52: 937 | L52: 679.7 | M52: 707.3 | N52: 703.1
A53: Zobowiązania z tytułu leasingu finansowego | B53: Finance lease liabilities | C53: 26.8 | D53: 28.7 | E53: 28.1 | F53: 28.9 | G53: 189.8 | H53: 206.6 | I53: 224.3 | J53: 216.7 | K53: 205.7 | L53: 199.6 | M53: 178.4 | N53: 183.9
A54: Pozostałe zobowiązania finansowe | B54: Financial liabilities | C54: 78.3 | D54: 187 | E54: 189.4 | F54: 199.3 | G54: 198 | H54: 218.7 | I54: 267 | J54: 265.1 | K54: 218 | L54: 296.9 | M54: 278 | N54: 329.4
A55: Zobowiązania z tytułu dostaw i usług | B55: Trade payables | C55: 683.2 | D55: 692.1 | E55: 729.8 | F55: 938.2 | G55: 839.1 | H55: 792.9 | I55: 801 | J55: 983.5 | K55: 952.8 | L55: 852.9 | M55: 933.6 | N55: 1191.7
A56: Zobowiązania z tytułu umów z klientami | B56: Contract liabilities | C56: 0 | D56: 440.2 | E56: 388 | F56: 451.1 | G56: 603.8 | H56: 584.6 | I56: 606.1 | J56: 627.3 | K56: 799.6 | L56: 733.8 | M56: 710.3 | N56: 900.1
A57: Zobowiązania z tytułu podatku CIT | B57: Corporate income tax payable | C57: 69.2 | D57: 83.3 | E57: 84.7 | F57: 73.7 | G57: 68 | H57: 63.2 | I57: 70.8 | J57: 89.5 | K57: 83.7 | L57: 81.2 | M57: 41.9 | N57: 67.4
A58: Zobowiązania budżetowe | B58: Liabilities to the state and local budgets | C58: 120.6 | D58: 128 | E58: 133.7 | F58: 204.8 | G58: 155.1 | H58: 177.1 | I58: 168.8 | J58: 231 | K58: 212.8 | L58: 204.6 | M58: 243.3 | N58: 296.2
A59: Pozostałe zobowiązania | B59: Other liabilities | C59: 279.4 | D59: 282.3 | E59: 267.7 | F59: 314.3 | G59: 340.9 | H59: 309.9 | I59: 338.1 | J59: 372.8 | K59: 394.3 | L59: 382.3 | M59: 384.5 | N59: 482.9
A60: Rezerwy | B60: Provisions | C60: 36.2 | D60: 34.2 | E60: 35.7 | F60: 45.4 | G60: 47 | H60: 35.7 | I60: 42.9 | J60: 39.2 | K60: 48 | L60: 39.1 | M60: 36.2 | N60: 36.7
A61: Rozliczenia międzyokresowe przychodów | B61: Deferred income | C61: 440.5 | D61: 16.3 | E61: 10 | F61: 7.8 | G61: 9.7 | H61: 10.9 | I61: 11.1 | J61: 9.8 | K61: 9.8 | L61: 7.1 | M61: 5.6 | N61: 7.5
A62: Rozliczenia międzyokresowe kosztów | B62: Accruals | C62: 238.6 | D62: 266.7 | E62: 264.9 | F62: 274.6 | G62: 265.5 | H62: 285.2 | I62: 326.9 | J62: 340.5 | K62: 314.5 | L62: 342.5 | M62: 362.1 | N62: 420.8
C63: =SUM(C52:C62) -> 2533.8 | D63: 2883.1 | E63: 2938.2 | F63: 3119.7 | G63: =SUM(G52:G62) -> 3408.5 | H63: 3471.3 | I63: 3735.3 | J63: 3864.8 | K63: 4176.2 | L63: =SUM(L52:L62) -> 3819.7 | M63: 3881.2 | N63: =SUM(N52:N62) -> 4619.7
A64: Suma zobowiązań | B64: Total liabilities | C64: =SUM(C50,C63) -> 4404 | D64: 4676.4 | E64: 4684.9 | F64: 4983.8 | G64: =SUM(G50,G63) -> 6003.4 | H64: 6024.9 | I64: 6452.4 | J64: 6610.4 | K64: 7271.4 | L64: =SUM(L50,L63) -> 7037.2 | M64: 7057.1 | N64: =SUM(N50,N63) -> 7747.2
A66: SUMA PASYWÓW | B66: TOTAL EQUITY AND LIABILITIES | C66: =SUM(C64,C40) -> 11680.5 | D66: 12035.9 | E66: 12157.3 | F66: 12646.1 | G66: =SUM(G64,G40) -> 13902.6 | H66: =SUM(H64,H40) -> 13687.6 | I66: 14411.6 | J66: 14594.2 | K66: 15614 | L66: =SUM(L64,L40) -> 15144.4 | M66: 15274.2 | N66: =SUM(N64,N40) -> 16704.5

Sheet CF
A1: Rachunek przepływów pieniężnych (Grupa Asseco) | B1: Statement of cash flows (Asseco Group)
C2: Q1 2018 | D2: Q2 2018 | E2: Q3 2018 | F2: Q4 2018 | G2: Q1 2019 | H2: Q2 2019 | I2: Q3 2019 | J2: Q4 2019 | K2: Q1 2020 | L2: Q2 2020 | M2: Q3 2020 | N2: Q4 2020
C4: mln PLN | D4: mln PLN | E4: mln PLN | F4: mln PLN | G4: mln PLN | H4: mln PLN | I4: mln PLN | J4: mln PLN | K4: mln PLN | L4: mln PLN | M4: mln PLN | N4: mln PLN
A6: Przepływy środków pieniężnych z działalności operacyjnej | B6: Cash flows - operating activities
A7: Zysk przed opodatkowaniem i udziałem w wynikach jednostek stowarzyszonych i wspólnych przedsięwzięć | B7: Profit before tax and share of profits of associates and joint ventures | C7: 161.2 | D7: 197.3 | E7: 178 | F7: 237.5 | G7: 200.1 | H7: 217.9 | I7: 230.7 | J7: 237.9 | K7: 230 | L7: 272.7 | M7: 265 | N7: 311.4
A9: Korekty o pozycje: | B9: Total adjustments: | C9: =SUM(C10:C24) -> 21.2 | D9: 10.9 | E9: 17.8 | F9: 353.9 | G9: 166.9 | H9: -12.9 | I9: =SUM(I10:I24) -> 170.6 | J9: 558.5 | K9: =SUM(K10:K24) -> 157.7 | L9: 209.6 | M9: 218.6 | N9: 566.3
A10: Amortyzacja | B10: Depreciation and amortization | C10: 117.2 | D10: 112.5 | E10: 113.7 | F10: 116.1 | G10: 144.4 | H10: 158.8 | I10: 164.2 | J10: 169.6 | K10: 170 | L10: 173.1 | M10: 177.5 | N10: 186.1
A11: Zmiany stanu kapitału pracującego (szczegóły poniżej) | B11: Changes in working capital (see below) | C11: -101.2 | D11: -104.9 | E11: -115.2 | F11: 238.1 | G11: 3.1 | H11: -198.9 | I11: -28.5 | J11: 354.6 | K11: -51.1 | L11: 14.4 | M11: -1 | N11: 314.1
A12: Przychody/koszty z tytułu odsetek | B12: Interest income/expenses | C12: 7.2 | D12: 13.2 | E12: -1 | F12: 7.2 | G12: 15 | H12: 24.5 | I12: 24.8 | J12: 19.4 | K12: 13 | L12: 24.4 | M12: 22.8 | N12: 15.7
A13: Przychody/koszty z różnic kursowych | B13: Gain/loss on foreign exchange differences | C13: -3.2 | D13: -26.8 | E13: 8 | F13: -3.6 | G13: 4.2 | H13: -9.6 | I13: -7.1 | J13: 15.7 | K13: -7.1 | L13: 2.5 | M13: 1.9 | N13: 21.7
A14: Przychody/koszty z tytułu aktywów finansowych | B14: Gain/loss on financial assets [1]
A15: Pozostałe przychody/koszty finansowe | B15: Other financial income/expenses | C15: 0.2 | D15: 10.6 | E15: 5.6 | F15: -4.6 | G15: -4.3 | H15: 8.1 | I15: 10.6 | J15: -3.5 | K15: 18.8 | L15: -4.7 | M15: 9.8 | N15: 3.4
A16: Zysk na utracie kontroli nad spółkami zależnymi | B16: Gain on lose of control over subsidiaries | C16: 0 | D16: 0 | E16: 0 | F16: 0 | G16: 0 | H16: 0 | I16: 0 | J16: 0 | K16: 0 | L16: 0 | M16: 0
A17: Odpis z tytułu utraty wartości firmy | B17: Write-off of consolidated goodwill | C17: 0 | D17: 0 | E17: 0 | F17: 0 | G17: 0 | H17: 0 | I17: 0 | J17: 0 | K17: 0 | L17: 0 | M17: 0
A18: Zyski/straty na sprzedaży rzeczowych AT i WN [1] | B18: Gain/loss on disposal of PPE and IA [2] | C18: -0.7 | D18: -0.4 | E18: -0.8 | F18: -2.1 | G18: -0.6 | H18: -1 | I18: -0.7 | J18: -0.4 | K18: -0.5 | L18: -1 | M18: -1 | N18: -0.7
A19: Zysk na sprzedaży spółki zależnej | B19: Gain on disposal of subsidiary | C19: 0 | D19: 0 | E19: 0 | F19: -9 | G19: 0 | H19: 0 | I19: 0 | J19: 0 | K19: 0 | L19: 0 | M19: 0 | N19: -0.3
A20: Zysk na sprzedaży działalności zaniechanej | B20: Gain on disposal of discontinued operations | C20: 0 | D20: 0 | E20: 0 | F20: 0 | G20: 0 | H20: 0 | I20: 0 | J20: 0 | K20: 0 | L20: 0 | M20: 0
A21: Koszty trans. z pracownikami rozliczanych w formie instr. kapitałowych | B21: Costs of equity-settled employee payment transactions | C21: 5.4 | D21: 6.3 | E21: 5.3 | F21: 4.6 | G21: 5.1 | H21: 3.8 | I21: 4.3 | J21: 3.4 | K21: 13.3 | L21: -2.7 | M21: 4.9 | N21: 16
A22: Odpis aktualizujący wartości niematerialne, rzeczowe aktywa trwałe i nieruchomości inwestycyjne | B22: Impairment of intangible and tangible fixed assets and investment property | C22: 0 | D22: 0 | E22: 0 | F22: 0 | G22: 0 | H22: 0 | I22: 0 | J22: 0 | K22: 0 | L22: 0 | M22: 0 | N22: 7.9
A23: Zyski/straty z tytułu likwidacji rzeczowych aktywów trwałych i wartości niematerialnych | B23: Profit / loss on liquidation of FA and IA | C23: 0 | D23: 0.1 | E23: 0.4 | F23: 5.6 | G23: 0 | H23: 1.6 | I23: 1.7 | J23: 0.6 | K23: 0.7 | L23: 0.5 | M23: 1.5 | N23: 4.1
A24: Pozostałe korekty zysku brutto | B24: Other pre-tax profit adjustments | C24: -3.7 | D24: 0.3 | E24: 1.8 | F24: 1.6 | G24: 0 | H24: -0.2 | I24: 1.3 | J24: -0.9 | K24: 0.6 | L24: 3.1 | M24: 2.2 | N24: -1.7
A25: Środki pieniężne netto wygenerowane z działalności operacyjnej | B25: Cash generated from operating activities | C25: =C9+C7 -> 182.4 | D25: 208.2 | E25: 195.8 | F25: 591.4 | G25: 367 | H25: 205 | I25: 401.3 | J25: =J9+J7 -> 796.4 | K25: =K9+K7 -> 387.7 | L25: 482.3 | M25: 483.6 | N25: 877.7
A26: Zapłacony podatek dochodowy | B26: Corporate income tax paid | C26: -41.8 | D26: -21.9 | E26: -40.7 | F26: -72.7 | G26: -68.5 | H26: -73.6 | I26: -39.9 | J26: -86.4 | K26: -57.7 | L26: -62.1 | M26: -113.6 | N26: -37.2
A27: Środki pieniężne netto z działalności operacyjnej | B27: Net cash provided by (used in) operating activities | C27: =C25+C26 -> 140.6 | D27: 186.3 | E27: 155.1 | F27: 518.7 | G27: 298.5 | H27: 131.4 | I27: 361.4 | J27: 710 | K27: =K25+K26 -> 330 | L27: 420.2 | M27: 370 | N27: 840.5
A29: Przepływy środków pieniężnych z działalności inwestycyjnej | B29: Cash flows – investing activities
A30: Wpływy ze sprzedaży rzeczowych AT i WN [1] oraz NI [5] | B30: Disposal of PPE and IA [2] and IP [6] | C30: 1.7 | D30: 0.7 | E30: 1.1 | F30: 4.4 | G30: 8.2 | H30: 10 | I30: 6.1 | J30: 3.9 | K30: 2.3 | L30: 2.7 | M30: 2.4 | N30: 3.2
A31: Nabycie rzeczowych AT i WN [1] oraz NI [5] | B31: Acquisition of PPE and IA [2] | C31: -49.3 | D31: -60.2 | E31: -58 | F31: -72.8 | G31: -72.5 | H31: -69.6 | I31: -98.8 | J31: -78.8 | K31: -88.9 | L31: -66.8 | M31: -73.7 | N31: -84.6
A32: Wydatki z tytułu nabycia jedn. zależnych i stowarzyszonych | B32: Expenditures for the acquisition of subsidiaries and associates | C32: -110.8 | D32: -37.9 | E32: -16 | F32: -83.9 | G32: -104.8 | H32: -48.5 | I32: -92.2 | J32: -82.7 | K32: -0.8 | L32: -66.4 | M32: -153.4 | N32: -302
A33: Środki pieniężne i ich ekwiwalenty w nabytych jednostkach zależnych | B33: Cash and cash equivalents in subsidiaries acquired | C33: 0 | D33: 0 | E33: 0 | F33: 0 | G33: 0 | H33: 0 | I33: 0 | J33: 0 | K33: 0 | L33: 0 | M33: 0
A34: Wpływy ze sprzedaży akcji/udziałów w jednostkach powiązanych | B34: Proceeds from sale of investment in subsidiaries | C34: 3.7 | D34: 4.6 | E34: 1.5 | F34: 11.4 | G34: 0.4 | H34: 3.9 | I34: 5.7 | J34: 2.5 | K34: 1.8 | L34: 26.2 | M34: 4.2 | N34: -0.3
A35: Środki pieniężne i ich ekwiwalenty w sprzedanych jednostkach zależnych (działalność zaniechana) | B35: Cash and cash equivalents in subsidiaries disposed of (discontinued operations) | C35: 0 | D35: 0 | E35: 0 | F35: 6.4 | G35: 0 | H35: 0 | I35: 0 | J35: 0 | K35: 0 | L35: 0 | M35: 0 | N35: 0
A36: Wpływy ze sprzedaży/rozliczenia aktywów finansowych [2] / [6] | B36: Disposal/settlement of financial assets [3] / [7] | C36: 1.2 | D36: 6.2 | E36: 1.3 | F36: 7.9 | G36: 2.9 | H36: 6.7 | I36: -0.8 | J36: 4.3 | K36: 23.5 | L36: -23.3 | M36: 21.1 | N36: 90
A37: Wydatki na nabycie/wydatki z tytułu rozliczenia aktywów finansowych [3] / [7] | B37: Acquisition/settlement of financial assets [4] / [8] | C37: -2 | D37: 0.6 | E37: -1.5 | F37: -14.8 | G37: -0.1 | H37: -0.6 | I37: 0.6 | J37: -90.2 | K37: -2.5 | L37: 17.7 | M37: -17.7 | N37: -0.8
A38: Środki pieniężne i ich ekwiwalenty w sprzedanych jednostkach zależnych (działalność zaniechana) | C38: 0 | D38: 0 | E38: 0 | F38: 0 | G38: 0 | H38: 0 | I38: 0 | J38: 0 | K38: 0 | L38: 0 | M38: 0
A39: Wpływ ze sprzedaży pozostałych instrumentów dłużnych [8] | B39: Disposal of other debt instruments [9] | C39: 0 | D39: 0 | E39: 1.3 | F39: 2.8 | G39: 0 | H39: 3.5 | I39: 0 | J39: 3.1 | K39: 10.6 | L39: 2 | M39: 0 | N39: 0.1
A40: Wydatki na nabycie inwestycji w instrumenty dłużne [9] | B40: Acquisition of ivestments in debt instruments measured at amortised cost [10] | C40: -1.8 | D40: 0 | E40: -9.8 | F40: 0 | G40: -4.5 | H40: 0 | I40: -0.1 | J40: -11.6 | K40: -1.8 | L40: -0.1 | M40: 0 | N40: 0
A41: Wpływ ze sprzedaży pozostałych aktywów finansowych | B41: Proceeds from sale of other financial assets | C41: 0 | D41: 0 | E41: 0 | F41: 0 | G41: 0 | H41: 0 | I41: 0 | J41: 0 | K41: 0 | L41: 0 | M41: 0
A42: Pożyczki udzielone | B42: Loans granted | C42: -11.7 | D42: -7 | E42: -0.3 | F42: -64.6 | G42: -0.4 | H42: -3.9 | I42: -9.3 | J42: -23.4 | K42: -10.8 | L42: -5.9 | M42: 4.2 | N42: -162.3
A43: Pożyczki spłacone | B43: Loans collected | C43: 14.9 | D43: 13.5 | E43: 5.9 | F43: 1 | G43: 30.2 | H43: 1.1 | I43: 9.4 | J43: 20.3 | K43: 1.2 | L43: 30.3 | M43: 30.9 | N43: 20.4
A44: Otrzymane odsetki | B44: Interest received | C44: 5.6 | D44: 0.7 | E44: 1.9 | F44: 0.4 | G44: 5.3 | H44: 0 | I44: 0.8 | J44: 3.1 | K44: 3.7 | L44: 0.7 | M44: 0.1 | N44: 1.6
A45: Dywidendy otrzymane | B45: Dividends received | C45: 0 | D45: 0.9 | E45: -0.1 | F45: 0.9 | G45: 0 | H45: 1.2 | I45: 0.4 | J45: 0 | K45: 0 | L45: 13.5 | M45: -0.1 | N45: 0.7
A46: Pozostałe przepływy z działalności inwestycyjnej | B46: Other cash flows from investing activities | C46: -2.2 | D46: -1.5 | E46: -3.4 | F46: 7 | G46: -8 | H46: 7.6 | I46: -11 | J46: 0.9 | K46: 4.7 | L46: 2.4 | M46: 2.3 | N46: 0
A47: Środki pieniężne netto wykorzystane w działalności inwestycyjnej | B47: Net cash provided by (used in) investing activities | C47: =SUM(C30:C46) -> -150.7 | D47: -79.4 | E47: -76.1 | F47: -193.9 | G47: -143.3 | H47: -88.6 | I47: -189.2 | J47: -248.6 | K47: =SUM(K30:K46) -> -57 | L47: -67 | M47: -179.7 | N47: -434
A49: Przepływy środków pieniężnych z działalności finansowej | B49: Cash flows – financing activities
A50: Wpływ z tytułu emisji kapitału | B50: Proceeds from issue of capital | C50: 0 | D50: 0 | E50: 90.7 | F50: 5.8 | G50: 0 | H50: 0 | I50: 0 | J50: 0 | K50: 0 | L50: 0 | M50: 0 | N50: 424.6
A51: Wpływy z realizacji programu opcji pracowniczych | B51: Proceeds from share-based payments | C51: 0 | D51: 0.4 | E51: 2.3 | F51: -1.8 | G51: 0 | H51: 0.4 | I51: 1.6 | J51: 3.6 | K51: 5.5 | L51: 4.8 | M51: 10 | N51: 0.4
A52: Wydatki z tytułu nabycia udziałów niekontrolujących | B52: Acquisition of non-controlling interests | C52: -9.2 | D52: -1 | E52: -2.7 | F52: -45.1 | G52: 0 | H52: -4.6 | I52: -7.6 | J52: -16.8 | K52: -87.3 | L52: -12.5 | M52: 1.8 | N52: -17.3
A53: Wpływy z tytułu zaciągnięcia pożyczek/kredytów | B53: Proceeds from bank loans and borrowings | C53: 33.3 | D53: 106 | E53: 128.6 | F53: 124.2 | G53: 234.8 | H53: 194.3 | I53: 46.8 | J53: 79.4 | K53: 534.7 | L53: 64.2 | M53: 26 | N53: 4.9
A54: Wpływy z tytułu emisji dłużnych papierów wartościowych | B54: Proceeds from the issuance of debt securities | C54: 153.7 | D54: 5.9 | E54: 2.3 | F54: 2.4 | G54: 0 | H54: 311.4 | I54: 7.3 | J54: 2.2 | K54: 0 | L54: 302.3 | M54: -6 | N54: -1.6
A55: Wykup dłużnych papierów wartościowych | B55: Repayment/redemption of debt securities | C55: 0 | D55: -33 | E55: -0.5 | F55: -0.5 | G55: -80.4 | H55: -0.1 | I55: -38.3 | J55: -0.5 | K55: -102.7 | L55: -0.9 | M55: -37.2 | N55: -37.7
A56: Spłata pożyczek/kredytów | B56: Repayment of bank loans and borrowings | C56: -82.2 | D56: -42.5 | E56: -41.5 | F56: -136.1 | G56: -137.1 | H56: -138.3 | I56: -67 | J56: -96.7 | K56: -110.6 | L56: -374.4 | M56: -81.3 | N56: -165
A57: Spłata zobowiązań z tytułu leasingu finansowego | B57: Finance lease liabilities paid | C57: -6.6 | D57: -7.5 | E57: -7.8 | F57: -7.4 | G57: -48.2 | H57: -50.8 | I57: -51.4 | J57: -56.1 | K57: -55.2 | L57: -59.7 | M57: -49.9 | N57: -57.4
A58: Zapłacone odsetki | B58: Interest paid | C58: -13.5 | D58: -12.4 | E58: -7.3 | F58: -7.4 | G58: -26.3 | H58: -12.8 | I58: -25.6 | J58: -18.8 | K58: -23 | L58: -19.2 | M58: -22.8 | N58: -24
A59: Dywidendy wypłacone przez Jednostkę Dominującą | B59: Dividends paid out to the shareholders of Parent Company | C59: 0 | D59: -249.8 | E59: 0 | F59: 0 | G59: 0 | H59: -254.8 | I59: 0 | J59: 0 | K59: 0 | L59: -249.8 | M59: 0 | N59: 0
A60: Dywidendy wypłacone dla udziałowców niekontrolujących | B60: Dividends paid out to non-controlling interests | C60: -34.8 | D60: -65 | E60: -55.8 | F60: -40.2 | G60: -59.5 | H60: -61.1 | I60: -96.1 | J60: -34.7 | K60: -70.5 | L60: -101.4 | M60: -94.7 | N60: -48.5
A61: Dotacje otrzymane [4] | B61: Grants received [5] | C61: 0 | D61: 0 | E61: 0 | F61: 1 | G61: 0 | H61: 2.3 | I61: 2.8 | J61: 0 | K61: 3.4 | L61: 2.2 | M61: 1.1 | N61: 4.4
A62: Dotacje zwrócone | B62: Grants returned | C62: 0 | D62: 0 | E62: 0 | F62: -9.5 | G62: 0 | H62: 0 | I62: 0 | J62: 0 | K62: 0 | L62: 0 | M62: 0 | N62: 0
A63: Pozostałe przepływy z działalności finansowej | B63: Other cash flows from financing activities | C63: 0 | D63: 0 | E63: 0 | F63: 0.2 | H63: 0 | I63: 0 | J63: 0 | K63: 0 | L63: 0 | M63: 0 | N63: 0
A64: Środki pieniężne netto z działalności finansowej | B64: Net cash provided by (used in) financing activities | C64: =SUM(C50:C63) -> 40.7 | D64: -298.9 | E64: 108.3 | F64: -114.4 | G64: -116.7 | H64: -14.1 | I64: -227.5 | J64: -138.4 | K64: =SUM(K50:K63) -> 94.3 | L64: -444.4 | M64: -253 | N64: =SUM(N50:N63) -> 82.8
A66: Zwiększenie/Zmniejszenie netto stanu środków pieniężnych i ich ekwiwalentów | B66: Net increase (decrease) in cash and cash equivalents | C66: =C27+C47+C64 -> 30.6 | D66: -192 | E66: 187.3 | F66: 210.4 | G66: 38.5 | H66: 28.7 | I66: -55.3 | J66: 323 | K66: =K27+K47+K64 -> 367.3 | L66: -91.2 | M66: -62.7 | N66: =N27+N47+N64 -> 489.3
A68: Różnice kursowe netto | B68: Net foreign exchange differences | C68: -19.1 | D68: 72.8 | E68: -18.9 | F68: 12.4 | G68: 27.1 | H68: -22.4 | I68: 94.9 | J68: -83.8 | K68: 126.9 | L68: -59.3 | M68: -33.4 | N68: 17
A69: Środki pieniężne i ich ekwiwalenty netto na początek danego okresu | B69: Cash and cash equivalents at the beginning of the period | C69: 1484 | D69: 1495.5 | E69: 1376.3 | F69: 1544.7 | G69: 1767.5 | H69: 1833.1 | I69: 1839.4 | J69: 1879 | K69: 2118.2 | L69: 2612.4 | M69: 2461.9 | N69: 2365.8
A70: Środki pieniężne i ich ekwiwalenty netto na koniec danego okresu | B70: Cash and cash equivalents at the end of the period | C70: 1495.5 | D70: 1376.3 | E70: 1544.7 | F70: 1767.5 | G70: 1833.1 | H70: 1839.4 | I70: 1879 | J70: 2118.2 | K70: 2612.4 | L70: 2461.9 | M70: 2365.8 | N70: 2872.1
C71: =C69+C68+C66-C70 -> 0 | D71: 0 | E71: 0 | F71: 0 | G71: 0 | H71: 0 | I71: 0 | J71: 0 | K71: =K69+K68+K66-K70 -> 0 | L71: 0 | M71: =M69+M68+M66-M70 -> 0 | N71: =N69+N68+N66-N70 -> 0
A73: Zmiany stanu kapitału pracującego | B73: Changes in working capital
C74: Q1 2018 | D74: Q2 2018 | E74: Q3 2018 | F74: Q4 2018 | G74: =G2 -> Q1 2019 | H74: Q2 2019 | I74: Q3 2019 | J74: Q4 2019 | K74: Q1 2020 | L74: Q2 2020 | M74: Q3 2020 | N74: Q4 2020
C76: mln PLN | D76: mln PLN | E76: mln PLN | F76: mln PLN | G76: =G4 -> mln PLN | H76: mln PLN | I76: mln PLN | J76: mln PLN | K76: mln PLN | L76: mln PLN | M76: mln PLN | N76: mln PLN
A77: Zmiana stanu zapasów | B77: Change in inventories | C77: -8.8 | D77: 7.3 | E77: -18.2 | F77: 1.1 | G77: -3.7 | H77: -4.8 | I77: -8.6 | J77: -4.4 | K77: 7.8 | L77: -16 | M77: -10.7 | N77: -16
A78: Zmiana stanu należności i aktywów niefinansowych | B78: Change in receivables and non-financial assets | C78: 121.3 | D78: -65.6 | E78: -60.3 | F78: -210.7 | G78: 178.5 | H78: -104.7 | I78: 30.2 | J78: -18.7 | K78: -10.9 | L78: 137.7 | M78: -96.6 | N78: -99.2
A79: Zmiana stanu zobowiązań | B79: Change in liabilities | C79: -248.1 | D79: -11.3 | E79: 17.1 | F79: 415 | G79: -237.9 | H79: -54 | I79: -7.8 | J79: 358 | K79: -97.2 | L79: -91.9 | M79: 125.9 | N79: 370.3
A80: Zmiana stanu rozliczeń międzyokresowych | B80: Change in prepayments and accruals | C80: 56.4 | D80: -34.7 | E80: -55.5 | F80: 28.6 | G80: 64.9 | H80: -28.1 | I80: -44.1 | J80: 27.8 | K80: 44.8 | L80: -15.2 | M80: -30.2 | N80: 55.3
A81: Zmiana stanu rezerw | B81: Change in provisions | C81: -17.5 | D81: -5.1 | E81: 1.7 | F81: 5.9 | G81: -1.3 | H81: -4.7 | I81: 1.8 | J81: 1.3 | K81: 3.2 | L81: 0.7 | M81: 12.7 | N81: 0.9
A82: Zmiana stanu pozostałe | B82: Change in restricted cash | C82: -4.5 | D82: 4.5 | E82: 0 | F82: -1.8 | G82: 2.6 | H82: -2.6 | I82: 0 | J82: -9.4 | K82: 1.2 | L82: -0.9 | M82: -2.1 | N82: 2.8
C83: =ROUND(SUM(C77:C82),1) -> -101.2 | D83: -104.9 | E83: -115.2 | F83: 238.1 | G83: 3.1 | H83: -198.9 | I83: -28.5 | J83: 354.6 | K83: -51.1 | L83: =ROUND(SUM(L77:L82),1) -> 14.4 | M83: -1 | N83: 314.1
C84: =C83-C11 -> 0 | D84: 0 | E84: 0 | F84: 0 | G84: 0 | H84: 0 | I84: 0 | J84: 0 | K84: 0 | L84: =L83-L11 -> 0 | M84: 0 | N84: 0
A85: Objaśnienia: | B85: Legend:
A86: [1] AT i WN - aktywów trwałych i wartości niematerialnych | B86: [2] PPE and IA - property, plant and equipment and intangible assets
A87: [2] Wpływy ze sprzedaży/rozliczenia akt. finansowych . wycenianych w wart. godz. przez wynik finansowy | B87: [3] Disposal/settlement of financial assets carried at fair value through profit or loss
A88: [3] Wydatki na nabycie/wydatki z tytułu rozliczenia akt. fin. wycenianych w wart. godz. przez wynik finansowy | B88: [4] Acquisition/settlement of financial assets carried at fair value through profit or loss
A89: [4] Dotacje otrzymane do zakupu środków trwałych lub/i projektów rozwojowych | B89: [5] Grants received for purchases of property, plant and equipment and/or development projects
A90: [5] NI - nieruchomości inwestycyjnych | B90: [6] IP - investment property
A91: [6] Wpływy ze sprzedaży aktywów finansowych wycenianych w wartości godziwej przez pozostałe dochody całkowite | B91: [7] Proceeds from disposal of financial assets valued at fair value through other comprehensive income
A92: [7] Nabycie aktywów finansowych wycenianych w wartości godziwej przez pozostałe dochody całkowite | B92: [8] Purchase of financial assets valued at fair value through other comprehensive income
A93: [8] Wpływ ze sprzedaży inwestycji w pozostałe instrumenty dłużne wyceniane w zamortyzowanym koszcie | B93: [9] Disposal of other debt instruments carried valued at amortized cost
A94: [9] Nabycie inwestycji w pozostałe instrumenty dłużne wyceniane w zamortyzowanym koszcie | B94: [10] Acquisition of investment in other debt instruments valued at amortized cost

Sheet Segments
A1: Segmenty działalności | B1: Operating segments
A3: Przejdź do: | B3: Go to:
A4: =seg_pl_pl -> Segment Asseco Poland | B4: =seg_en_pl -> Segment Asseco Poland
A5: =seg_pl_see -> Segment Asseco International | B5: =seg_en_see -> Segment Asseco International
A6: =seg_pl_we -> Segment Formula Systems | B6: =seg_en_we -> Segment Formula Systems
A10: Segment Asseco Poland | B10: Segment Asseco Poland | C10: Q1 2018 | D10: Q2 2018 | E10: Q3 2018 | F10: Q4 2018 | G10: Q1 2019 | H10: Q2 2019 | I10: Q3 2019 | J10: Q4 2019 | K10: Q1 2020 | L10: Q2 2020 | M10: Q3 2020 | N10: Q4 2020
C12: mln PLN | D12: mln PLN | E12: mln PLN | F12: mln PLN | G12: mln PLN | H12: mln PLN | I12: mln PLN | J12: mln PLN | K12: mln PLN | L12: mln PLN | M12: mln PLN | N12: mln PLN
A14: Sprzedaż na rzecz klientów zewnętrznych | B14: Sales to external customers | C14: 314.5 | D14: 350.2 | E14: 306.1 | F14: 376.5 | G14: 294.9 | H14: 302.8 | I14: 287.3 | J14: 314.7 | K14: 306.7 | L14: 329.7 | M14: 363.8 | N14: 422.6
A15: Sprzedaż pomiędzy segmentami | B15: Inter-segment sales | C15: 1.8 | D15: 1.9 | E15: 2.1 | F15: 5.7 | G15: 3.7 | H15: 2.3 | I15: 2.8 | J15: 3.8 | K15: 2.1 | L15: 0.9 | M15: 0.3 | N15: 6.1
A16: Zysk/strata netto z działalności operacyjnej segmentu | B16: Net operating profit/loss | C16: 55.8 | D16: 64.7 | E16: 52.6 | F16: 47.6 | G16: 43.3 | H16: 44.1 | I16: 38.2 | J16: 27.5 | K16: 42.7 | L16: 52.1 | M16: 60.2 | N16: 59.8
A17: Przychody z tytułu odsetek | B17: Interest income | C17: 2.2 | D17: 0.7 | E17: 2 | F17: 1.6 | G17: 1.6 | H17: 1.1 | I17: 1.2 | J17: 1.3 | K17: 1.3 | L17: 0.6 | M17: 0.5 | N17: 0.3
A18: Koszty z tytułu odsetek | B18: Interest expenses | C18: -1.4 | D18: -2 | E18: -2.3 | F18: -1.3 | G18: -1.7 | H18: -1.4 | I18: -4 | J18: -1.3 | K18: -1.3 | L18: -0.8 | M18: -0.9 | N18: -1
A19: Podatek dochodowy | B19: Corporate income tax | C19: -15.1 | D19: -13.9 | E19: -12.5 | F19: -14.2 | G19: -8.1 | H19: -7.8 | I19: -6.9 | J19: -6.2 | K19: -7.9 | L19: -12.5 | M19: -13.5 | N19: -3.2
A20: Pozycje niepieniężne: | B20: Non-cash items:
A21: Amortyzacja | B21: Depreciation and amortization | C21: -19.8 | D21: -19.9 | E21: -21.8 | F21: -21.6 | G21: -23.4 | H21: -22.8 | I21: -22.8 | J21: -22.7 | K21: -23.2 | L21: -22.9 | M21: -24 | N21: -21.7
A22: w tym amortyzacja wartości niematerialnych rozpoznanych w wyniku procesu alokacji ceny nabycia (PPA) | B22: of which amortization of IA recognized in purchase price allocation process (PPA) | C22: -4.2 | D22: -4.2 | E22: -4.6 | F22: -4.8 | G22: -3.7 | H22: -4.7 | I22: -4.2 | J22: -4.1 | K22: -4 | L22: -4.1 | M22: -4 | N22: -8.3
A23: Koszty transakcji z pracownikami rozliczanych w formie instrumentów kapitałowych | B23: Costs of share-based payment transactions with employees | C23: 0 | D23: 0 | E23: 0 | F23: 0 | G23: 0 | H23: 0 | I23: 0 | J23: 0 | K23: 0 | L23: 0 | M23: 0 | N23: 0
A24: Odpis z tyt. utraty wartości aktywów segmentu | B24: Impairment write-downs on segment assets | C24: 6.9 | D24: -4.2 | E24: -1.4 | F24: -3.7 | G24: 2.6 | H24: -2.7 | I24: -0.4 | J24: 1.2 | K24: -0.2 | L24: -2.9 | M24: -2.7 | N24: -12.6
A25: Udział w wynikach jednostek stowarzyszonych i wspólnych przedsięwziąć | B25: Share in profits of associates and joint ventures | C25: -0.6 | D25: -0.6 | E25: 0.2 | F25: 1.1 | G25: 0 | H25: -0.4 | I25: -0.6 | J25: -0.4 | K25: -0.8 | L25: -0.6 | M25: -1.5 | N25: 0.6
A26: Zysk/strata netto segmentu przypisany Jednostce Dominującej | B26: Net profit/loss attributable to shareholders of the Parent Company | C26: 38.8 | D26: 45.3 | E26: 40.5 | F26: 37 | G26: 35.3 | H26: 33.5 | I26: 24.9 | J26: 20 | K26: 32.1 | L26: 37.1 | M26: 42.9 | N26: 55.8
A27: Środki pieniężne netto z działalności operacyjnej | B27: Net cash provided by (used in) operating activities | C27: 54.5 | D27: 104.3 | E27: 67.2 | F27: 128.4 | G27: 68.4 | H27: 26.6 | I27: 90.4 | J27: 110.3 | K27: 64.6 | L27: 60.1 | M27: 54.8 | N27: 138.1
A28: Wartość firmy | B28: Goodwill ( in comparative periods balance as at 31.12.2017) | C28: 2253.7 | D28: 2256.9 | E28: 2256.3 | F28: 2257.1 | G28: 2257.1 | H28: 2260.7 | I28: 2260.6 | J28: 2260.6 | K28: 2260.6 | L28: 2260.6 | M28: 2260.6 | N28: 2257.1
A31: Segment Asseco International | B31: Segment Asseco International | C31: Q1 2018 | D31: Q2 2018 | E31: Q3 2018 | F31: Q4 2018 | G31: Q1 2019 | H31: Q2 2019 | I31: Q3 2019 | J31: Q4 2019 | K31: Q1 2020 | L31: Q2 2020 | M31: Q3 2020 | N31: Q4 2020
C33: mln PLN | D33: mln PLN | E33: mln PLN | F33: mln PLN | G33: mln PLN | H33: mln PLN | I33: mln PLN | J33: mln PLN | K33: mln PLN | L33: mln PLN | M33: mln PLN | N33: mln PLN
A35: Sprzedaż na rzecz klientów zewnętrznych | B35: Sales to external customers | C35: 573.6 | D35: 640.6 | E35: 586.7 | F35: 788.6 | G35: 674.5 | H35: 671.7 | I35: 685.9 | J35: 894.1 | K35: 753.1 | L35: 747.1 | M35: 717.8 | N35: 1000.3
A36: Sprzedaż pomiędzy segmentami | B36: Inter-segment sales | C36: 0.4 | D36: 3.7 | E36: 0.1 | F36: -1.5 | G36: -0.9 | H36: 0.9 | I36: 0.7 | J36: 2.5 | K36: 1.1 | L36: 2.2 | M36: 2.9 | N36: 1.2
A37: Zysk/strata netto z działalności operacyjnej segmentu | B37: Net operating profit/loss | C37: 54.3 | D37: 69.6 | E37: 58.9 | F37: 91.1 | G37: 76.4 | H37: 74.4 | I37: 87.7 | J37: 109.8 | K37: 81.2 | L37: 91.4 | M37: 79.2 | N37: 137.2
A38: Przychody z tytułu odsetek | B38: Interest income | C38: 1.4 | D38: 1.8 | E38: 1.7 | F38: 1.5 | G38: 1.6 | H38: 2 | I38: 1.5 | J38: 1.6 | K38: 1.8 | L38: 2.1 | M38: 0.7 | N38: 1.2
A39: Koszty z tytułu odsetek | B39: Interest expenses | C39: -0.7 | D39: -0.9 | E39: -1.2 | F39: -1 | G39: -1.9 | H39: -1.9 | I39: -2.4 | J39: -2.4 | K39: -2.1 | L39: -2.7 | M39: -2.3 | N39: -2.5
A40: Podatek dochodowy | B40: Corporate income tax | C40: -14.7 | D40: -16.2 | E40: -13.5 | F40: -16.8 | G40: -16.1 | H40: -17.7 | I40: -18.3 | J40: -19.9 | K40: -17.2 | L40: -17 | M40: -14.4 | N40: -24.1
A41: Pozycje niepieniężne: | B41: Non-cash items:
A42: Amortyzacja | B42: Depreciation and amortization | C42: -24.7 | D42: -27.8 | E42: -27.3 | F42: -25.2 | G42: -34.5 | H42: -35.9 | I42: -38.8 | J42: -41.1 | K42: -42.5 | L42: -43.5 | M42: -42.6 | N42: -41.9
A43: w tym amortyzacja wartości niematerialnych rozpoznanych w wyniku procesu alokacji ceny nabycia (PPA) | B43: of which amortization of IA recognized in purchase price allocation process (PPA) | C43: -1.9 | D43: -2 | E43: -2 | F43: -3.1 | G43: -2.3 | H43: -2.2 | I43: -2.6 | J43: -4.1 | K43: -3.2 | L43: -3.7 | M43: -3.7 | N43: -3.6
A44: Koszty transakcji z pracownikami rozliczanych w formie instrumentów kapitałowych | B44: Costs of share-based payment transactions with employees | C44: 0.6 | D44: -1.8 | E44: -0.6 | F44: -0.7 | G44: -0.7 | H44: -0.8 | I44: -0.3 | J44: -0.3 | K44: -0.3 | L44: -0.4 | M44: 0 | N44: 0
A45: Odpis z tyt. utraty wartości aktywów segmentu | B45: Impairment write-downs on segment assets | C45: -0.6 | D45: 0.4 | E45: -3.6 | F45: -4.7 | G45: -2.3 | H45: -1.8 | I45: -3.9 | J45: -2.2 | K45: -1.5 | L45: -2.6 | M45: -4.2 | N45: 0.1
A46: Udział w wynikach jednostek stowarzyszonych i wspólnych przedsięwziąć | B46: Share in profits of associates and joint ventures | C46: -1 | D46: 0.3 | E46: 0.1 | F46: 1.1 | G46: -1.9 | H46: -1.3 | I46: 0.2 | J46: 3.7 | K46: -1.5 | L46: 0.5 | M46: -0.3 | N46: 2.5
A47: Zysk/strata netto segmentu przypisany Jednostce Dominującej | B47: Net profit/loss attributable to shareholders of the Parent Company | C47: 26.3 | D47: 38.2 | E47: 31.8 | F47: 53.3 | G47: 38.3 | H47: 36.6 | I47: 44.9 | J47: 55.3 | K47: 42.7 | L47: 46.5 | M47: 36.4 | N47: 70.3
A48: Środki pieniężne netto z działalności operacyjnej | B48: Net cash provided by (used in) operating activities | C48: 40.5 | D48: 58 | E48: 67.3 | F48: 229.9 | G48: 80.5 | H48: 43.3 | I48: 69.6 | J48: 299.8 | K48: 66 | L48: 93.3 | M48: 136.3 | N48: 284.2
A49: Wartość firmy | B49: Goodwill ( in comparative periods balance as at 31.12.2017) | C49: 1345.6 | D49: 1394 | E49: 1366.1 | F49: 1367.7 | G49: 1362.7 | H49: 1355.5 | I49: 1443.2 | J49: 1419.6 | K49: 1490.6 | L49: 1469.2 | M49: 1477.7 | N49: 1517.7
A52: Segment Formula Systems | B52: Segment Formula Systems
C53: Q1 2018 | D53: Q2 2018 | E53: Q3 2018 | F53: Q4 2018 | G53: Q1 2019 | H53: Q2 2019 | I53: Q3 2019 | J53: Q4 2019 | K53: Q1 2020 | L53: Q2 2020 | M53: Q3 2020 | N53: Q4 2020
C55: mln PLN | D55: mln PLN | E55: mln PLN | F55: mln PLN | G55: mln PLN | H55: mln PLN | I55: mln PLN | J55: mln PLN | K55: mln PLN | L55: mln PLN | M55: mln PLN | N55: mln PLN
A57: Sprzedaż na rzecz klientów zewnętrznych | B57: Sales to external customers | C57: 1260.9 | D57: 1320.1 | E57: 1325.6 | F57: 1485.2 | G57: 1482.8 | H57: 1564.2 | I57: 1765.2 | J57: 1729.3 | K57: 1859.7 | L57: 1773.2 | M57: 1856.2 | N57: 2060.1
A58: Sprzedaż pomiędzy segmentami | B58: Inter-segment sales | C58: 2.9 | D58: 2.8 | E58: 2.2 | F58: 3 | G58: 3.3 | H58: 3 | I58: 3.4 | J58: 3.2 | K58: 2.8 | L58: 2.6 | M58: 2.8 | N58: 4
A59: Zysk/strata netto z działalności operacyjnej segmentu | B59: Net operating profit/loss | C59: 56.8 | D59: 69.8 | E59: 74.8 | F59: 99.7 | G59: 105 | H59: 109.4 | I59: 135 | J59: 123.3 | K59: 126.9 | L59: 160.5 | M59: 159 | N59: 168.2
A60: Przychody z tytułu odsetek | B60: Interest income | C60: 0.4 | D60: 0.5 | E60: 0.7 | F60: 0.8 | G60: 1.3 | H60: 0.9 | I60: 2.3 | J60: 0.1 | K60: 1 | L60: 0.5 | M60: 4.6 | N60: -2.8
A61: Koszty z tytułu odsetek | B61: Interest expenses | C61: -9.9 | D61: -10.4 | E61: -11.2 | F61: -11.4 | G61: -13.8 | H61: -17.2 | I61: -19.8 | J61: -14.5 | K61: -17.8 | L61: -19.9 | M61: -17.9 | N61: -21.1
A62: Podatek dochodowy | B62: Corporate income tax | C62: -13.4 | D62: -15.1 | E62: -11 | F62: -25.9 | G62: -19.6 | H62: -22.7 | I62: -25.5 | J62: -21.8 | K62: -26.6 | L62: -32.5 | M62: -27.4 | N62: -19.5
A63: Pozycje niepieniężne: | B63: Non-cash items:
A64: Amortyzacja | B64: Depreciation and amortization | C64: -73.6 | D64: -65.5 | E64: -65.9 | F64: -70 | G64: -87.5 | H64: -101 | I64: -104.1 | J64: -107 | K64: -104.8 | L64: -107.1 | M64: -111.7 | N64: -122.7
A65: w tym amortyzacja wartości niematerialnych rozpoznanych w wyniku procesu alokacji ceny nabycia (PPA) | B65: of which amortization of IA recognized in purchase price allocation process (PPA) | C65: -56.5 | D65: -48.1 | E65: -47.5 | F65: -51.1 | G65: -44.9 | H65: -44.4 | I65: -48.6 | J65: -47.4 | K65: -45.8 | L65: -49.9 | M65: -50 | N65: -51.7
A66: Koszty transakcji z pracownikami rozliczanych w formie instrumentów kapitałowych | B66: Costs of share-based payment transactions with employees | C66: -4.8 | D66: -5.7 | E66: -4.7 | F66: -3.9 | G66: -4.4 | H66: -3 | I66: -4 | J66: -3.1 | K66: -13 | L66: 3.1 | M66: -4.9 | N66: -16
A67: Odpis z tyt. utraty wartości aktywów segmentu | B67: Impairment write-downs on segment assets | C67: -1.6 | D67: -0.9 | E67: -0.8 | F67: -1.7 | G67: 0.1 | H67: -0.6 | I67: -0.9 | J67: -1.9 | K67: -1.9 | L67: -3.3 | M67: -3.3 | N67: -2.4
A68: Udział w wynikach jednostek stowarzyszonych i wspólnych przedsięwziąć | B68: Share in profits of associates and joint ventures | C68: 0.2 | D68: -0.4 | E68: 0 | F68: 1.6 | G68: 2.8 | H68: 1.4 | I68: 1.6 | J68: 1.2 | K68: 0.5 | L68: 0.9 | M68: -0.1 | N68: 4.4
A69: Zysk/strata netto segmentu przypisany Jednostce Dominującej | B69: Net profit/loss attributable to shareholders of the Parent Company | C69: 3.4 | D69: 5.1 | E69: 4.3 | F69: 7.8 | G69: 6 | H69: 8.8 | I69: 8.8 | J69: 8.7 | K69: 7.4 | L69: 11.9 | M69: 10.5 | N69: 10.7
A70: Środki pieniężne netto z działalności operacyjnej | B70: Net cash provided by (used in) operating activities | C70: 89 | D70: 40.5 | E70: 55.1 | F70: 241.5 | G70: 218.1 | H70: 135.6 | I70: 245.7 | J70: 382.7 | K70: 257.4 | L70: 329.5 | M70: 293.2 | N70: 456.1
A71: Wartość firmy | B71: Goodwill ( in comparative periods balance as at 31.12.2017) | C71: 628.8 | D71: 551.3 | E71: 575 | F71: 628.3 | G71: 796.6 | H71: 795.2 | I71: 922.6 | J71: 881.2 | K71: 1014.4 | L71: 1014.8 | M71: 1141.1 | N71: 1354.3

Sheet wyniki spolek
E1: Przychody ze sprzedaży | R1: Zysk operacyjny | AE1: Zysk operacyjny non-IFRS | AR1: Zysk netto 100% | BE1: Zysk netto kontrybucja do Asseco Poland | BR1: Zysk netto kontrybucja do Asseco Poland non-IFRS
E2: Q1 2018 | F2: Q2 2018 | G2: Q3 2018 | H2: Q4 2018 | I2: Q1 2019 | J2: Q2 2019 | K2: Q3 2019 | L2: Q4 2019 | M2: Q1 2020 | N2: Q2 2020 | O2: Q3 2020 | P2: Q4 2020 | R2: Q1 2018 | S2: Q2 2018 | T2: Q3 2018 | U2: Q4 2018 | V2: Q1 2019 | W2: Q2 2019 | X2: Q3 2019 | Y2: Q4 2019 | Z2: Q1 2020 | AA2: Q2 2020 | AB2: Q3 2020 | AC2: Q4 2020 | AE2: Q1 2018 | AF2: Q2 2018 | AG2: Q3 2018 | AH2: Q4 2018 | AI2: Q1 2019 | AJ2: Q2 2019 | AK2: Q3 2019 | AL2: Q4 2019 | AM2: Q1 2020 | AN2: Q2 2020 | AO2: Q3 2020 | AP2: Q4 2020 | AR2: Q1 2018 | AS2: Q2 2018 | AT2: Q3 2018 | AU2: Q4 2018 | AV2: Q1 2019 | AW2: Q2 2019 | AX2: Q3 2019 | AY2: Q4 2019 | AZ2: Q1 2020 | BA2: Q2 2020 | BB2: Q3 2020 | BC2: Q4 2020 | BE2: Q1 2018 | BF2: Q2 2018 | BG2: Q3 2018 | BH2: Q4 2018 | BI2: Q1 2019 | BJ2: Q2 2019 | BK2: Q3 2019 | BL2: Q4 2019 | BM2: Q1 2020 | BN2: Q2 2020 | BO2: Q3 2020 | BP2: Q4 2020 | BR2: Q1 2018 | BS2: Q2 2018 | BT2: Q3 2018 | BU2: Q4 2018 | BV2: Q1 2019 | BW2: Q2 2019 | BX2: Q3 2019 | BY2: Q4 2019 | BZ2: Q1 2020 | CA2: Q2 2020 | CB2: Q3 2020 | CC2: Q4 2020
B3: Rynek polski | E3: 316300000 | F3: 352100000 | G3: 308200000 | H3: 382200000 | I3: 298600000 | J3: 305100000 | K3: 290100000 | L3: 318500000 | M3: 308800000 | N3: 330600000 | O3: 364100000 | P3: 428700000 | R3: 55800000 | S3: 64700000 | T3: 52600000 | U3: 47600000 | V3: 43300000 | W3: 44100000 | X3: 38200000 | Y3: 27500000 | Z3: 42700000 | AA3: 52100000 | AB3: 60200000 | AC3: 59800000 | AE3: 60015000 | AF3: 68917000 | AG3: 57201888.89 | AH3: 52401611.11 | AI3: 46963000 | AJ3: 48868000 | AK3: 42415000 | AL3: 31551000 | AM3: 46715000 | AN3: 56206000 | AO3: 64245896.34 | AP3: 68049500 | AR3: 40102344 | AS3: 47387684.99 | AT3: 42641000.25 | AU3: 38170000 | AV3: 36046000 | AW3: 35529000 | AX3: 25786000 | AY3: 20997000 | AZ3: 32498000 | BA3: 39809000 | BB3: 44183000 | BC3: 55249000 | BE3: 38838820.02 | BF3: 45274107.62 | BG3: 40449367.94 | BH3: 37024006.86 | BI3: 35275148.13 | BJ3: 33558061.85 | BK3: 24904693.43 | BL3: 20001920.55 | BM3: 32131942.8 | BN3: 37069287.07 | BO3: 42969589.51 | BP3: 55734100.92 | BR3: 42233927.18 | BS3: 48799776.92 | BT3: 43380577.79 | BU3: 37137603.95 | BV3: 38245108.59 | BW3: 37655121.85 | BX3: 28268693.43 | BY3: 23305010.09 | BZ3: 35383942.8 | CA3: 40394287.07 | CB3: 46268835.98 | CC3: 62452550.92
B4: Asseco Poland (bez dywidend) | E4: 205373000 | F4: 225425000 | G4: 210982000 | H4: 251505000 | I4: 195051000 | J4: 210024000 | K4: 191685000 | L4: 208784000 | M4: 203854000 | N4: 226591000 | O4: 261223000 | P4: 305204000 | R4: 46308000 | S4: 43215000 | T4: 47506000 | U4: 44687000 | V4: 29061000 | W4: 31933000 | X4: 28117000 | Y4: 20223000 | Z4: 31374000 | AA4: 34011000 | AB4: 43893000 | AC4: 48777000 | AE4: 49016000 | AF4: 45922000 | AG4: 50213000 | AH4: 47397000 | AI4: 31769000 | AJ4: 34640000 | AK4: 30825000 | AL4: 22731000 | AM4: 33881000 | AN4: 36518000 | AO4: 46490000 | AP4: 55622000 | AR4: 38885000 | AS4: 30938000 | AT4: 40170000 | AU4: 36002000 | AV4: 24125000 | AW4: 28206000 | AX4: 22701000 | AY4: 16943000 | AZ4: 24274000 | BA4: 25451000 | BB4: 32927000 | BC4: 46838000 | BE4: 38871445.81 | BF4: 30952157.06 | BG4: 40171489.3 | BH4: 35998889.84 | BI4: 24129251.68 | BJ4: 28206840.23 | BK4: 22699789.32 | BL4: 16940611.43 | BM4: 24274060.82 | BN4: 25443755.24 | BO4: 32934126.94 | BP4: 46837140.47 | BR4: 41021568.13 | BS4: 33205951.2 | BT4: 42381339.35 | BU4: 38193989.43 | BV4: 26319752.14 | BW4: 29609360.23 | BX4: 24894789.32 | BY4: 18974700.97 | BZ4: 26305060.82 | CA4: 27473755.24 | CB4: 35038036.94 | CC4: 52385590.47
B5: Asseco Data Systems | C5: Asseco Data Systems PF | D5: Asseco Data Systems PF | E5: 89075000 | F5: 93260000 | G5: 76711000 | H5: 91508000 | I5: 72401000 | J5: 68301000 | K5: 60973000 | L5: 74111000 | M5: 67693000 | N5: 66439000 | O5: 72765000 | P5: 88263000 | R5: 5623000 | S5: 12511000 | T5: 1308000 | U5: 6374000 | V5: 8989000 | W5: 8071000 | X5: 916000 | Y5: 6438000 | Z5: 7319000 | AA5: 11376000 | AB5: 11071000 | AC5: 7314000 | AE5: 7041000 | AF5: 13932000 | AG5: 2725000 | AH5: 7792000 | AI5: 10407000 | AJ5: 9491000 | AK5: 2334000 | AL5: 7857000 | AM5: 8738000 | AN5: 12795000 | AO5: 12489000 | AP5: 8733000 | AR5: 4471000 | AS5: 10087000 | AT5: 979000 | AU5: 3704000 | AV5: 7819000 | AW5: 6262000 | AX5: -2858000 | AY5: 4971000 | AZ5: 6005000 | BA5: 8775000 | BB5: 8988000 | BC5: 5812000 | BE5: 4471000 | BF5: 10087000 | BG5: 979000 | BH5: 3704000 | BI5: 7819000 | BJ5: 6262000 | BK5: -2858000 | BL5: 4971000 | BM5: 6005000 | BN5: 8775000 | BO5: 8988000 | BP5: 5812000 | BR5: 5619580 | BS5: 11238010 | BT5: 2126770 | BU5: 4852580 | BV5: 8967580 | BW5: 7412420 | BX5: -1710000 | BY5: 6121000 | BZ5: 7154000 | CA5: 9925000 | CB5: 10136000 | CC5: 6982000
B6: Pozostałe | E6: 34999000 | F6: 43634000 | G6: 38749000 | H6: 51071000 | I6: 40260000 | J6: 40737000 | K6: 47596000 | L6: 49022000 | M6: 49500000 | N6: 51781000 | O6: 42668000 | P6: 48345000 | R6: 4411000 | S6: 6700000 | T6: 7299000 | U6: 5913000 | V6: 4142000 | W6: 4254000 | X6: 8740946.064 | Y6: 3889315.355 | Z6: 4052000 | AA6: 7494000 | AB6: 6841000 | AC6: 655000 | AE6: 4411000 | AF6: 6700000 | AG6: 7299000 | AH6: 5913000 | AI6: 4142000 | AJ6: 4254000 | AK6: 8740946.064 | AL6: 3889315.355 | AM6: 4052000 | AN6: 7494000 | AO6: 6841000 | AP6: 655000 | AR6: 2511000 | AS6: 4613000 | AT6: 5748000 | AU6: 4852000 | AV6: 3036000 | AW6: 2179000 | AX6: 5898946.064 | AY6: 2593315.355 | AZ6: 2547000 | BA6: 5680000 | BB6: 3883000 | BC6: -430000 | BE6: 1166531.266 | BF6: 2583968.304 | BG6: 3189981.882 | BH6: 3770773.463 | BI6: 2230132.103 | BJ6: 241995.3038 | BK6: 5061823.822 | BL6: 1532753.871 | BM6: 2183174.957 | BN6: 2928506.484 | BO6: 2695531.405 | BP6: 39920.11266 | BR6: 1166531.266 | BS6: 2583968.304 | BT6: 3189981.882 | BU6: 3795883.463 | BV6: 2230132.103 | BW6: 241995.3038 | BX6: 5061823.822 | BY6: 1534753.871 | BZ6: 2183174.957 | CA6: 2928506.484 | CB6: 2695531.405 | CC6: 39920.11266
D7: korekty | E7: -13147000 | F7: -10219000 | G7: -18242000 | H7: -11884000 | I7: -9112000 | J7: -13962000 | K7: -10154000 | L7: -13417000 | M7: -12247000 | N7: -14211000 | O7: -12556000 | P7: -13112000 | R7: -542000 | S7: 2274000 | T7: -3513000 | U7: -9374000 | V7: 1108000 | W7: -158000 | X7: 426053.9356 | Y7: -3050315.355 | Z7: -45000 | AA7: -781000 | AB7: -1605000 | AC7: 3054000 | AE7: -453000 | AF7: 2363000 | AG7: -3035111.111 | AH7: -8700388.889 | AI7: 645000 | AJ7: 483000 | AK7: 515053.9356 | AL7: -2926315.355 | AM7: 44000 | AN7: -601000 | AO7: -1574103.661 | AP7: 3039500 | AR7: -5764656 | AS7: 1749684.99 | AT7: -4255999.75 | AU7: -6388000 | AV7: 1066000 | AW7: -1118000 | AX7: 44053.93556 | AY7: -3510315.355 | AZ7: -328000 | BA7: -97000 | BB7: -1615000 | BC7: 3029000 | BE7: -5670157.058 | BF7: 1650982.252 | BG7: -3891103.24 | BH7: -6449656.442 | BI7: 1096764.348 | BJ7: -1152773.682 | BK7: 1080.283389 | BL7: -3442444.747 | BM7: -330292.9769 | BN7: -77974.6531 | BO7: -1648068.839 | BP7: 3045040.337 | BR7: -5573752.22 | BS7: 1771847.41 | BT7: -4317513.442 | BU7: -9704848.942 | BV7: 727644.3478 | BW7: 391346.3178 | BX7: 22080.28339 | BY7: -3325444.747 | BZ7: -258292.9769 | CA7: 67025.3469 | CB7: -1600732.37 | CC7: 3045040.337
B8: Rynek izraelski | E8: 1263800000 | F8: 1322900000 | G8: 1327800000 | H8: 1488200000 | I8: 1486100000 | J8: 1567200000 | K8: 1768600000 | L8: 1732500000 | M8: 1862500000 | N8: 1775800000 | O8: 1859000000 | P8: 2064100000 | R8: 56800000 | S8: 69800000 | T8: 74800000 | U8: 99700000 | V8: 105000000 | W8: 109400000 | X8: 135000000 | Y8: 123300000 | Z8: 126893000 | AA8: 160507000 | AB8: 159000000 | AC8: 168200000 | AE8: 118103675.9 | AF8: 123554359.8 | AG8: 126526248.9 | AH8: 155249344.8 | AI8: 154312220.2 | AJ8: 156731041.3 | AK8: 187652290.6 | AL8: 173844233.5 | AM8: 185705432.1 | AN8: 207321764 | AO8: 213864462.3 | AP8: 235830302.4 | AR8: 32971321.06 | AS8: 45030678.94 | AT8: 44935000 | AU8: 65893000 | AV8: 60963000 | AW8: 75224000 | AX8: 85286000 | AY8: 81994000 | AZ8: 78333000 | BA8: 98430000 | BB8: 99585000 | BC8: 107083000 | BE8: 3352027.306 | BF8: 5155191.379 | BG8: 4273191.918 | BH8: 7869090.088 | BI8: 5952207.628 | BJ8: 8857314.729 | BK8: 8806254.977 | BL8: 8657110.955 | BM8: 7389284.423 | BN8: 11876023.65 | BO8: 10577491.26 | BP8: 10672479.53 | BR8: 10631090.3 | BS8: 11319105.83 | BT8: 10316918.24 | BU8: 14718032.06 | BV8: 11128723.83 | BW8: 13698780.87 | BX8: 14330324.1 | BY8: 14718730.15 | BZ8: 14909355.98 | CA8: 16833371.45 | CB8: 15740859.83 | CC8: 19004378.88
B9: Matrix IT | E9: 759908192 | F9: 773974079.7 | G9: 765809682.8 | H9: 885310052 | I9: 888804243.2 | J9: 935449905.1 | K9: 1066891860 | L9: 998489337.6 | M9: 1112976989 | N9: 995774161.7 | O9: 1080977636 | P9: 1206625081 | R9: 52733426.52 | S9: 53170361.63 | T9: 50707810.65 | U9: 69334136.72 | V9: 62884255.45 | W9: 63016636.19 | X9: 75943784.22 | Y9: 72032917.69 | Z9: 77710252.65 | AA9: 76841471.94 | AB9: 80939794.24 | AC9: 91810593.72 | AE9: 56373425.07 | AF9: 57451517.06 | AG9: 54447627.93 | AH9: 74626498.96 | AI9: 69610473.66 | AJ9: 69441391.73 | AK9: 83105410.71 | AL9: 78414439.92 | AM9: 84147717.86 | AN9: 83296847.44 | AO9: 88921494.54 | AP9: 99774329.96 | AR9: 34345845.84 | AS9: 34687108.95 | AT9: 31351500.5 | AU9: 44622358.29 | AV9: 39895166.82 | AW9: 39682481.85 | AX9: 49026859.63 | AY9: 51907383.71 | AZ9: 49169004.41 | BA9: 48342710.25 | BB9: 50133264.49 | BC9: 70052743.33 | BE9: 4339318.363 | BF9: 4293513.774 | BG9: 3876789.904 | BH9: 5498629.268 | BI9: 4814369.379 | BJ9: 4662835.157 | BK9: 5763528.203 | BL9: 6185929.06 | BM9: 5636167.369 | BN9: 5679315.75 | BO9: 5729241.496 | BP9: 7649250.548 | BR9: 5025176.544 | BS9: 5310002.299 | BT9: 4841869.986 | BU9: 6562281.789 | BV9: 5602516.477 | BW9: 5514801.167 | BX9: 6683084.843 | BY9: 6831457.202 | BZ9: 6073807.565 | CA9: 6682624.093 | CB9: 6207042.2 | CC9: 7684270.064
B10: Magic Software | E10: 236243311.3 | F10: 256256989 | G10: 264383788.9 | H10: 273324710 | I10: 271624575 | J10: 293085764 | K10: 337158171.4 | L10: 349840772.1 | M10: 339162772.2 | N10: 351437968.4 | O10: 358384043.3 | P10: 400349858.8 | R10: 25638257.42 | S10: 29089081.48 | T10: 28269706.46 | U10: 31698428.13 | V10: 31735307.65 | W10: 30437457 | X10: 35671641.79 | Y10: 33826256.86 | Z10: 34714809.62 | AA10: 42058373.51 | AB10: 42898448.78 | AC10: 48782010.65 | AE10: 31808108.98 | AF10: 35658794.38 | AG10: 35465706.83 | AH10: 38183396.74 | AI10: 37844798.87 | AJ10: 37852031.07 | AK10: 45460698.05 | AL10: 43709487.52 | AM10: 41327344.35 | AN10: 49540962.5 | AO10: 51673798.69 | AP10: 57495374.83 | AR10: 19614097.03 | AS10: 24685802.79 | AT10: 22487454.28 | AU10: 22962035.05 | AV10: 24698989.58 | AW10: 23065808.74 | AX10: 25986436.52 | AY10: 22854916.56 | AZ10: 27950629.57 | BA10: 27243542.48 | BB10: 31212389.42 | BC10: 28523623.47 | BE10: 1923780.68 | BF10: 2569075.479 | BG10: 2250208.041 | BH10: 2055315.533 | BI10: 2363685.408 | BJ10: 2057419.928 | BK10: 2289718.732 | BL10: 2062692.374 | BM10: 2586290.328 | BN10: 2744020.4 | BO10: 3052885.832 | BP10: 2744059.384 | BR10: 2513230.441 | BS10: 3196527.957 | BT10: 2942704.435 | BU10: 2633755.938 | BV10: 2882327.865 | BW10: 2553219.032 | BX10: 3153635.277 | BY10: 3220244.88 | BZ10: 3479181.774 | CA10: 3855995.786 | CB10: 3743265.7 | CC10: 4436028.344
B11: Sapiens Int. | E11: 240546283 | F11: 263261260.5 | G11: 268479678.1 | H11: 277241569.9 | I11: 290482664 | J11: 302516301.9 | K11: 325231382.6 | L11: 333644223.8 | M11: 361295009.7 | N11: 377032101.3 | O11: 368182048.4 | P11: 388555475.7 | R11: 17547315.34 | S11: 17810254.85 | T11: 24342058.94 | U11: 27176939.1 | V11: 32325450.45 | W11: 37104407.29 | X11: 45640974.26 | Y11: 37138056.15 | Z11: 42867741.69 | AA11: 54129229.5 | AB11: 53095184.04 | AC11: 45377011.35 | AE11: 29202608.79 | AF11: 30448114.28 | AG11: 35733781.21 | AH11: 39384488.45 | AI11: 43314968.71 | AJ11: 47241261.98 | AK11: 56907812.88 | AL11: 47343498.48 | AM11: 54983405.79 | AN11: 69230625.98 | AO11: 66642096.85 | AP11: 66242324.16 | AR11: 10798087.27 | AS11: 6741688.76 | AT11: 18630461.96 | AU11: 16616487.98 | AV11: 20129165.81 | AW11: 24156931.85 | AX11: 31109774.74 | AY11: 26315044.61 | AZ11: 25675949.55 | BA11: 35771551.28 | BB11: 37128056.84 | BC11: 28583651.88 | BE11: 1364406.99 | BF11: 809498.1944 | BG11: 2350251.507 | BH11: 2062352.506 | BI11: 2488614.14 | BJ11: 2931081.514 | BK11: 3749456.18 | BL11: 3146533.394 | BM11: 3097616.354 | BN11: 4356791.704 | BO11: 4422217.857 | BP11: 3300509.664 | BR11: 2633408.464 | BS11: 2219936.365 | BT11: 3460949.149 | BU11: 3299279.487 | BV11: 3586421.661 | BW11: 3909014.464 | BX11: 4857969.546 | BY11: 4359635.299 | BZ11: 4297431.613 | CA11: 6355257.173 | CB11: 5537830.143 | CC11: 5903065.221
B12: Pozostałe | E12: 27102213.67 | F12: 29407670.83 | G12: 29126850.2 | H12: 52323668.15 | I12: 35188517.82 | J12: 36148029.12 | K12: 39318586.08 | L12: 50525666.49 | M12: 49065228.85 | N12: 51555768.54 | O12: 51456272.72 | P12: 68569584.09 | R12: -39118999.28 | S12: -30269697.96 | T12: -28519576.06 | U12: -28509503.96 | V12: -21945013.55 | W12: -21158500.48 | X12: -22256400.27 | Y12: -19697230.7 | Z12: -28399803.96 | AA12: -12522074.95 | AB12: -17933427.07 | AC12: -17769615.71 | AE12: 719533.0699 | AF12: -4065.927892 | AG12: 879132.9052 | AH12: 3054960.651 | AI12: 3541978.96 | AJ12: 2196356.53 | AK12: 2178368.928 | AL12: 4376807.536 | AM12: 5246964.076 | AN12: 5253328.077 | AO12: 6627072.173 | AP12: 12318273.48 | AR12: -31786709.07 | AS12: -21083921.56 | AT12: -27534416.74 | AU12: -18307881.32 | AV12: -23760322.21 | AW12: -11681222.43 | AX12: -20837070.89 | AY12: -19083344.87 | AZ12: -24462583.53 | BA12: -12927804 | BB12: -18888710.76 | BC12: -20077018.68 | BE12: -4275478.727 | BF12: -2516896.069 | BG12: -4204057.533 | BH12: -1747207.218 | BI12: -3714461.3 | BJ12: -794021.8696 | BK12: -2996448.138 | BL12: -2738043.874 | BM12: -3930789.628 | BN12: -904104.2069 | BO12: -2626853.921 | BP12: -3021340.063 | BR12: 459274.8471 | BS12: 592639.204 | BT12: -928605.3254 | BU12: 2222714.841 | BV12: -942542.1743 | BW12: 1721746.207 | BX12: -364365.5643 | BY12: 307392.7717 | BZ12: 1058935.027 | CA12: -60505.60482 | CB12: 252721.7836 | CC12: 981015.2557
B13: Inne rynki międzynarodowe | E13: 574000000 | F13: 644300000 | G13: 586800000 | H13: 787100000 | I13: 673600000 | J13: 672600000 | K13: 686600000 | L13: 896600000 | M13: 754200000 | N13: 749300000 | O13: 720700000 | P13: 1001500000 | R13: 54300000 | S13: 69600000 | T13: 58900000 | U13: 91100000 | V13: 76400000 | W13: 74400000 | X13: 88200000 | Y13: 109300000 | Z13: 81226000 | AA13: 91374000 | AB13: 79200000 | AC13: 137200000 | AE13: 56814525.93 | AF13: 72236627.2 | AG13: 61466614.83 | AH13: 94887053.9 | AI13: 79377654.77 | AJ13: 77439419.69 | AK13: 91055961.96 | AL13: 113673580.3 | AM13: 84701068.11 | AN13: 95545821.76 | AO13: 82867317.56 | AP13: 140777693.8 | AR13: 43133755.2 | AS13: 59333215.81 | AT13: 52325999.75 | AU13: 80654000 | AV13: 60158000 | AW13: 57530000 | AX13: 70683000 | AY13: 91242000 | AZ13: 66208000 | BA13: 73696000 | BB13: 62811000 | BC13: 112491000 | BE13: 26347970.54 | BF13: 38140689.12 | BG13: 31806986.39 | BH13: 53254700.86 | BI13: 38258739.01 | BJ13: 36649428.24 | BK13: 45006931.67 | BL13: 55170796.33 | BM13: 42684483.16 | BN13: 46497243.69 | BO13: 36369218.18 | BP13: 70349163.98 | BR13: 27943842.03 | BS13: 40172958.66 | BT13: 33123653.55 | BU13: 50123545.19 | BV13: 40129677.91 | BW13: 37927365.33 | BX13: 47944271.18 | BY13: 58076366.55 | BZ13: 44877430.24 | CA13: 49169205.4 | CB13: 39423092 | CC13: 72247732.14
C14: Rynek środkowoeurop. | E14: 272268722.4 | F14: 306810471.4 | G14: 278464465.4 | H14: 355493822.5 | I14: 319965093.5 | J14: 315722979.1 | K14: 295402297.3 | L14: 403211812.6 | M14: 321336321.9 | N14: 320868428.1 | O14: 302059924.1 | P14: 387960701.3 | R14: 32716872 | S14: 39714131.25 | T14: 35683895.47 | U14: 52965473.62 | V14: 44882273.15 | W14: 44591829.69 | X14: 48198238.28 | Y14: 60006358.04 | Z14: 46771881.42 | AA14: 49114706.08 | AB14: 36715212.03 | AC14: 73639001.47 | AE14: 33180516.39 | AF14: 40200795.8 | AG14: 36165351.5 | AH14: 54572172.3 | AI14: 45681274.26 | AJ14: 45310689.8 | AK14: 49104832.51 | AL14: 60710351.92 | AM14: 47631086.3 | AN14: 49900938.03 | AO14: 37748302.75 | AP14: 74512451.44 | AR14: 24251433.6 | AS14: 30034723.65 | AT14: 28818292.01 | AU14: 49498521.03 | AV14: 35216446.06 | AW14: 35347429.92 | AX14: 37607556.94 | AY14: 50146177.79 | AZ14: 36273596.54 | BA14: 40848709.71 | BB14: 28457978.01 | BC14: 59614588.49 | BE14: 15849945.54 | BF14: 20967071.34 | BG14: 19976276.55 | BH14: 35116908.49 | BI14: 25210862.51 | BJ14: 25590339.96 | BK14: 27190610.78 | BL14: 32113971.02 | BM14: 25968872.77 | BN14: 29762533.09 | BO14: 19078212.66 | BP14: 40019629.22 | BR14: 16032404.27 | BS14: 21540272.06 | BT14: 20238713.94 | BU14: 29359731.06 | BV14: 25731806.89 | BW14: 26231760.72 | BX14: 27823519.03 | BY14: 32453269.17 | BZ14: 26533957.42 | CA14: 30236823.91 | CB14: 19748579.7 | CC14: 40572497.04
C15: Rynek południowo-wschodniej Europy | E15: 156138451.2 | F15: 183755656.2 | G15: 173909809.4 | H15: 261490760.7 | I15: 187076182.9 | J15: 198384469.2 | K15: 228834687 | L15: 275797340.8 | M15: 231335950 | N15: 233791721.2 | O15: 227324204 | P15: 335951306.6 | R15: 13409180 | S15: 18823988.5 | T15: 19447109.62 | U15: 26719237.8 | V15: 21364359.67 | W15: 22562279.15 | X15: 29345537.8 | Y15: 34327249.76 | Z15: 27916293.55 | AA15: 35207192.7 | AB15: 36707728.5 | AC15: 44057716.18 | AE15: 14482315.94 | AF15: 19938634.15 | AG15: 20559389.61 | AH15: 27891700.41 | AI15: 22537320.33 | AJ15: 23881732.13 | AK15: 30130583.69 | AL15: 35599991.17 | AM15: 29226465.57 | AN15: 36634154.97 | AO15: 37705792.12 | AP15: 45085429.28 | AR15: 11557975.2 | AS15: 16113672.65 | AT15: 18805958.24 | AU15: 21352211.92 | AV15: 18348450.36 | AW15: 18238050.73 | AX15: 24661683.6 | AY15: 27863465.66 | AZ15: 23291420.98 | BA15: 27245562.77 | BB15: 31216206.4 | BC15: 35134195.44 | BE15: 5872741.388 | BF15: 8281768.204 | BG15: 9586954.823 | BH15: 10991226.86 | BI15: 9169111.275 | BJ15: 9098016.095 | BK15: 12520556.83 | BL15: 14260492.27 | BM15: 11909097.48 | BN15: 13625999.34 | BO15: 15924260.16 | BP15: 17610676.86 | BR15: 6432126.532 | BS15: 8862682.555 | BT15: 10166609.33 | BU15: 11597289.72 | BV15: 9839457.837 | BW15: 8643000.659 | BX15: 12924768.84 | BY15: 15104052.18 | BZ15: 12289246.44 | CA15: 14634385.63 | CB15: 17117643.84 | CC15: 18012300.26
B16: Rynek zachodniooeuropejski | E16: 144236434 | F16: 155543111.3 | G16: 131496770.3 | H16: 168886672.8 | I16: 163936458.3 | J16: 156649012.5 | K16: 161073405.5 | L16: 214516797 | M16: 199581427.9 | N16: 192478798.3 | O16: 190199669.1 | P16: 274425201 | R16: 11132100.8 | S16: 13227148.75 | T16: 6120649.518 | U16: 14635022.73 | V16: 12773330.23 | W16: 10223366.66 | X16: 14836708.45 | Y16: 16498255.96 | Z16: 9306896.604 | AA16: 10216838.4 | AB16: 8608496.944 | AC16: 21772529.73 | AE16: 12109846.4 | AF16: 14233465.75 | AG16: 7122528.334 | AH16: 15642915.34 | AI16: 13779023.23 | AJ16: 11224473.25 | AK16: 16001030.3 | AL16: 18872100.98 | AM16: 10612587.81 | AN16: 12175465.94 | AO16: 10244660.16 | AP16: 23449060.46 | AR16: 11382232 | AS16: 15062699.4 | AT16: 5953954.835 | AU16: 13403554.39 | AV16: 11053027.25 | AW16: 8177801.134 | AX16: 13331893.06 | AY16: 12032879.7 | AZ16: 11390727.02 | BA16: 8803636.73 | BB16: 6871580.186 | BC16: 19111843.88 | BE16: 8209680.37 | BF16: 11167388.33 | BG16: 3747467.25 | BH16: 10211690.13 | BI16: 8123681.372 | BJ16: 6242363.181 | BK16: 10160598.87 | BL16: 8243553.298 | BM16: 9764326.039 | BN16: 6546670.579 | BO16: 5141889.193 | BP16: 13885890.93 | BR16: 8745739.173 | BS16: 11725819.86 | BT16: 4290049.163 | BU16: 11022319.81 | BV16: 8788788.328 | BW16: 6797418.581 | BX16: 11161881.21 | BY16: 9618873.259 | BZ16: 10693520.97 | CA16: 7424087.325 | CB16: 6057333.088 | CC16: 14554647.81
B17: Rynek wschodnioeuropejski | E17: 1015351.2 | F17: 2168475.75 | G17: 2315919.845 | H17: 1062771.089 | I17: 2505636.814 | J17: 1645179.421 | K17: 1372794.735 | L17: 1410823.41 | M17: 1217765.876 | N17: 1660164.124 | O17: 463105.7584 | P17: 2162178.951 | R17: -480516 | S17: 408445.35 | T17: 237956.2842 | U17: 51727.1175 | V17: 189104.6652 | W17: 578453.2955 | X17: 163097.2417 | Y17: 273837.1216 | Z17: 92321.6007 | AA17: 600513.3993 | AB17: -386277.1977 | AC17: -29159.9877 | AE17: -480516 | AF17: 408445.35 | AG17: 237956.2842 | AH17: 51727.1175 | AI17: 189104.6652 | AJ17: 578453.2955 | AK17: 163097.2417 | AL17: 273837.1216 | AM17: 92321.6007 | AN17: 600513.3993 | AO17: -386277.1977 | AP17: -29159.9877 | AR17: -1535973.84 | AS17: 955169.19 | AT17: 431932.927 | AU17: 588364.1431 | AV17: -1719133.32 | AW17: -677877.2947 | AX17: -192451.3142 | AY17: 3445511.831 | AZ17: -1973923.748 | BA17: 899141.2483 | BB17: -560192.4456 | BC17: 1115972.583 | BE17: -1261723.931 | BF17: 777088.7792 | BG17: 255937.5442 | BH17: 598524.6894 | BI17: -1817270.574 | BJ17: -975186.5737 | BK17: -78313.09589 | BL17: 3134485.047 | BM17: -2078401.978 | BN17: 646870.5133 | BO17: -572205.8418 | BP17: 1318702.01 | BR17: -975755.1233 | BS17: 1141048.243 | BT17: 566930.6899 | BU17: 908290.0719 | BV17: -1692026.115 | BW17: -652585.0733 | BX17: 259623.8058 | BY17: 3464658.977 | BZ17: -1759883.437 | CA17: 958738.3682 | CB17: -297526.631 | CC17: 1594022.058
B18: Pozostałe | E18: 341041.2 | F18: -3977714.7 | G18: 613035.0646 | H18: 165972.9127 | I18: 116628.3901 | J18: 198359.7389 | K18: -83184.5262 | L18: 1663226.171 | M18: 728534.2753 | N18: 500888.2247 | O18: 653097.0267 | P18: 1000612.074 | R18: -2477636.8 | S18: -2573713.85 | T18: -2589610.889 | U18: -3271461.269 | V18: -2809067.719 | W18: -3555928.793 | X18: -4343581.777 | Y18: -1805700.882 | Z18: -2861393.171 | AA18: -3765250.579 | AB18: -2445160.274 | AC18: -2240087.394 | AE18: -2477636.8 | AF18: -2544713.85 | AG18: -2618610.889 | AH18: -3271461.269 | AI18: -2809067.719 | AJ18: -3555928.793 | AK18: -4343581.777 | AL18: -1782700.882 | AM18: -2861393.171 | AN18: -3765250.579 | AO18: -2445160.274 | AP18: -2240087.394 | AR18: -2521911.76 | AS18: -2833049.08 | AT18: -1684138.257 | AU18: -4188651.487 | AV18: -2740790.346 | AW18: -3555404.491 | AX18: -4725682.278 | AY18: -2246034.983 | AZ18: -2773820.79 | BA18: -4101050.46 | BB18: -3174572.146 | BC18: -2485600.395 | BE18: -2322672.82 | BF18: -3052627.538 | BG18: -1759649.778 | BH18: -3663649.305 | BI18: -2427645.572 | BJ18: -3306104.427 | BK18: -4786521.706 | BL18: -2581705.308 | BM18: -2879411.148 | BN18: -4084829.825 | BO18: -3202937.996 | BP18: -2485735.04 | BR18: -2290672.82 | BS18: -3096864.056 | BT18: -2138649.575 | BU18: -2764085.468 | BV18: -2538349.036 | BW18: -3092229.563 | BX18: -4225521.706 | BY18: -2564487.034 | BZ18: -2879411.148 | CA18: -4084829.825 | CB18: -3202937.996 | CC18: -2485735.04
B19: Korekta konsolidacyjna | E19: -5100000 | F19: -8400000 | G19: -4400000 | H19: -7200000 | I19: -6100000 | J19: -6200000 | K19: -6900000 | L19: -9500000 | M19: -6000000 | N19: -5700000 | O19: -6000000 | P19: -11300000 | R19: 400000 | S19: -300000 | T19: 1300000 | U19: -300000 | V19: -3.278255463e-07 | W19: 1000000 | X19: -300000 | Y19: -200000 | Z19: -719000 | AA19: -581000 | AB19: 1000000 | AC19: -2700000 | AE19: 400000 | AF19: -300000 | AG19: 1300000 | AH19: -300000 | AI19: -3.278255463e-07 | AJ19: 1000000 | AK19: -300000 | AL19: -232000 | AM19: -719000 | AN19: -581000 | AO19: 1000000 | AP19: -2718000 | AR19: 392579.7379 | AS19: -351579.7379 | AT19: 1398000 | AU19: -317000 | AV19: 33000 | AW19: 1117000 | AX19: -255000 | AY19: -33000 | AZ19: -539000 | BA19: -435000 | BB19: 1221000 | BC19: -2723000 | BE19: 361182.1349 | BF19: -169988.1126 | BG19: 1470453.748 | BH19: -147797.8049 | BI19: 113905.2298 | BJ19: 1035195.181 | BK19: -217880.0745 | BL19: -129827.8369 | BM19: -505710.3856 | BN19: -342554.4117 | BO19: 983701.0531 | BP19: -2555744.43 | BR19: 361182.1349 | BS19: -169988.1126 | BT19: 1470453.748 | BU19: -147797.8049 | BV19: 69713.37019 | BW19: 1035195.181 | BX19: -217880.0745 | BY19: -85635.97731 | BZ19: -505710.3856 | CA19: -342554.4117 | CB19: 983701.0531 | CC19: -2553744.43
B20: Grupa Asseco | E20: 2149000000 | F20: 2310900000 | G20: 2218400000 | H20: 2650300000 | I20: 2452200000 | J20: 2538700000 | K20: 2738400000 | L20: 2938100000 | M20: 2919500000 | N20: 2850000000 | O20: 2937800000 | P20: 3483000000 | R20: 167300000 | S20: 203800000 | T20: 187600000 | U20: 238100000 | V20: 224700000 | W20: 228900000 | X20: 261100000 | Y20: 259900000 | Z20: 250100000 | AA20: 303400000 | AB20: 299400000 | AC20: 362500000 | AE20: 235333201.8 | AF20: 264407987 | AG20: 246494752.6 | AH20: 302238009.8 | AI20: 280652875 | AJ20: 284038461 | AK20: 320823252.5 | AL20: 318836813.8 | AM20: 316402500.2 | AN20: 358492585.7 | AO20: 361977676.2 | AP20: 441939496.2 | AR20: 116600000 | AS20: 151400000 | AT20: 141300000 | AU20: 184400000 | AV20: 157200000 | AW20: 169400000 | AX20: 181500000 | AY20: 194200000 | AZ20: 176500000 | BA20: 211500000 | BB20: 207800000 | BC20: 272100000 | BE20: 68900000 | BF20: 88400000 | BG20: 78000000 | BH20: 98000000 | BI20: 79600000 | BJ20: 80100000 | BK20: 78500000 | BL20: 83700000 | BM20: 81700000 | BN20: 95100000 | BO20: 90900000 | BP20: 134200000 | BR20: 81170041.63 | BS20: 100121853.3 | BT20: 88291603.33 | BU20: 101831383.4 | BV20: 89573223.7 | BW20: 90316463.23 | BX20: 90325408.63 | BY20: 96014470.82 | BZ20: 94665018.64 | CA20: 106054309.5 | CB20: 102416488.9 | CC20: 151150917.5

Sheet company results (hidden)
E1: Sales revenues | R1: Operating profit | AE1: Operating profit non-IFRS | AR1: Net profit 100% | BE1: Contribution to net profit of ACP | BR1: Contribution to net profit non-IFRS of ACP
E2: Q1 2018 | F2: Q2 2018 | G2: Q3 2018 | H2: Q4 2018 | I2: Q1 2019 | J2: Q2 2019 | K2: Q3 2019 | L2: Q4 2019 | M2: Q1 2020 | N2: Q2 2020 | O2: Q3 2020 | P2: Q4 2020 | R2: Q1 2018 | S2: Q2 2018 | T2: Q3 2018 | U2: Q4 2018 | V2: Q1 2019 | W2: Q2 2019 | X2: Q3 2019 | Y2: Q4 2019 | Z2: Q1 2020 | AA2: Q2 2020 | AB2: Q3 2020 | AC2: Q4 2020 | AE2: Q1 2018 | AF2: Q2 2018 | AG2: Q3 2018 | AH2: Q4 2018 | AI2: Q1 2019 | AJ2: Q2 2019 | AK2: Q3 2019 | AL2: Q4 2019 | AM2: Q1 2020 | AN2: Q2 2020 | AO2: Q3 2020 | AP2: Q4 2020 | AR2: Q1 2018 | AS2: Q2 2018 | AT2: Q3 2018 | AU2: Q4 2018 | AV2: Q1 2019 | AW2: Q2 2019 | AX2: Q3 2019 | AY2: Q4 2019 | AZ2: Q1 2020 | BA2: Q2 2020 | BB2: Q3 2020 | BC2: Q4 2020 | BE2: Q1 2018 | BF2: Q2 2018 | BG2: Q3 2018 | BH2: Q4 2018 | BI2: Q1 2019 | BJ2: Q2 2019 | BK2: Q3 2019 | BL2: Q4 2019 | BM2: Q1 2020 | BN2: Q2 2020 | BO2: Q3 2020 | BP2: Q4 2020 | BR2: Q1 2018 | BS2: Q2 2018 | BT2: Q3 2018 | BU2: Q4 2018 | BV2: Q1 2019 | BW2: Q2 2019 | BX2: Q3 2019 | BY2: Q4 2019 | BZ2: Q1 2020 | CA2: Q2 2020 | CB2: Q3 2020 | CC2: Q4 2020
B3: Segment Asseco Poland | E3: 316300000 | F3: 352100000 | G3: 308200000 | H3: 382200000 | I3: 298600000 | J3: 305100000 | K3: 290100000 | L3: 318500000 | M3: 308800000 | N3: 330600000 | O3: 364100000 | P3: 428700000 | R3: 55800000 | S3: 64700000 | T3: 52600000 | U3: 47600000 | V3: 43300000 | W3: 44100000 | X3: 38200000 | Y3: 27500000 | Z3: 42700000 | AA3: 52100000 | AB3: 60200000 | AC3: 59800000 | AE3: 60015000 | AF3: 68917000 | AG3: 57201888.89 | AH3: 52401611.11 | AI3: 46963000 | AJ3: 48868000 | AK3: 42415000 | AL3: 31551000 | AM3: 46715000 | AN3: 56206000 | AO3: 64245896.34 | AP3: 68049500 | AR3: 40102344 | AS3: 47387684.99 | AT3: 42641000.25 | AU3: 38170000 | AV3: 36046000 | AW3: 35529000 | AX3: 25786000 | AY3: 20997000 | AZ3: 32498000 | BA3: 39809000 | BB3: 44183000 | BC3: 55249000 | BE3: 38838820.02 | BF3: 45274107.62 | BG3: 40449367.94 | BH3: 37024006.86 | BI3: 35275148.13 | BJ3: 33558061.85 | BK3: 24904693.43 | BL3: 20001920.55 | BM3: 32131942.8 | BN3: 37069287.07 | BO3: 42969589.51 | BP3: 55734100.92 | BR3: 42233927.18 | BS3: 48799776.92 | BT3: 43380577.79 | BU3: 37137603.95 | BV3: 38245108.59 | BW3: 37655121.85 | BX3: 28268693.43 | BY3: 23305010.09 | BZ3: 35383942.8 | CA3: 40394287.07 | CB3: 46268835.98 | CC3: 62452550.92
B4: Asseco Poland (excl. dividends) | E4: 205373000 | F4: 225425000 | G4: 210982000 | H4: 251505000 | I4: 195051000 | J4: 210024000 | K4: 191685000 | L4: 208784000 | M4: 203854000 | N4: 226591000 | O4: 261223000 | P4: 305204000 | R4: 46308000 | S4: 43215000 | T4: 47506000 | U4: 44687000 | V4: 29061000 | W4: 31933000 | X4: 28117000 | Y4: 20223000 | Z4: 31374000 | AA4: 34011000 | AB4: 43893000 | AC4: 48777000 | AE4: 49016000 | AF4: 45922000 | AG4: 50213000 | AH4: 47397000 | AI4: 31769000 | AJ4: 34640000 | AK4: 30825000 | AL4: 22731000 | AM4: 33881000 | AN4: 36518000 | AO4: 46490000 | AP4: 55622000 | AR4: 38885000 | AS4: 30938000 | AT4: 40170000 | AU4: 36002000 | AV4: 24125000 | AW4: 28206000 | AX4: 22701000 | AY4: 16943000 | AZ4: 24274000 | BA4: 25451000 | BB4: 32927000 | BC4: 46838000 | BE4: 38871445.81 | BF4: 30952157.06 | BG4: 40171489.3 | BH4: 35998889.84 | BI4: 24129251.68 | BJ4: 28206840.23 | BK4: 22699789.32 | BL4: 16940611.43 | BM4: 24274060.82 | BN4: 25443755.24 | BO4: 32934126.94 | BP4: 46837140.47 | BR4: 41021568.13 | BS4: 33205951.2 | BT4: 42381339.35 | BU4: 38193989.43 | BV4: 26319752.14 | BW4: 29609360.23 | BX4: 24894789.32 | BY4: 18974700.97 | BZ4: 26305060.82 | CA4: 27473755.24 | CB4: 35038036.94 | CC4: 52385590.47
B5: Asseco Data Systems | C5: Asseco Data Systems PF | D5: Asseco Data Systems PF | E5: 89075000 | F5: 93260000 | G5: 76711000 | H5: 91508000 | I5: 72401000 | J5: 68301000 | K5: 60973000 | L5: 74111000 | M5: 67693000 | N5: 66439000 | O5: 72765000 | P5: 88263000 | R5: 5623000 | S5: 12511000 | T5: 1308000 | U5: 6374000 | V5: 8989000 | W5: 8071000 | X5: 916000 | Y5: 6438000 | Z5: 7319000 | AA5: 11376000 | AB5: 11071000 | AC5: 7314000 | AE5: 7041000 | AF5: 13932000 | AG5: 2725000 | AH5: 7792000 | AI5: 10407000 | AJ5: 9491000 | AK5: 2334000 | AL5: 7857000 | AM5: 8738000 | AN5: 12795000 | AO5: 12489000 | AP5: 8733000 | AR5: 4471000 | AS5: 10087000 | AT5: 979000 | AU5: 3704000 | AV5: 7819000 | AW5: 6262000 | AX5: -2858000 | AY5: 4971000 | AZ5: 6005000 | BA5: 8775000 | BB5: 8988000 | BC5: 5812000 | BE5: 4471000 | BF5: 10087000 | BG5: 979000 | BH5: 3704000 | BI5: 7819000 | BJ5: 6262000 | BK5: -2858000 | BL5: 4971000 | BM5: 6005000 | BN5: 8775000 | BO5: 8988000 | BP5: 5812000 | BR5: 5619580 | BS5: 11238010 | BT5: 2126770 | BU5: 4852580 | BV5: 8967580 | BW5: 7412420 | BX5: -1710000 | BY5: 6121000 | BZ5: 7154000 | CA5: 9925000 | CB5: 10136000 | CC5: 6982000
B6: Other | E6: 34999000 | F6: 43634000 | G6: 38749000 | H6: 51071000 | I6: 40260000 | J6: 40737000 | K6: 47596000 | L6: 49022000 | M6: 49500000 | N6: 51781000 | O6: 42668000 | P6: 48345000 | R6: 4411000 | S6: 6700000 | T6: 7299000 | U6: 5913000 | V6: 4142000 | W6: 4254000 | X6: 8740946.064 | Y6: 3889315.355 | Z6: 4052000 | AA6: 7494000 | AB6: 6841000 | AC6: 655000 | AE6: 4411000 | AF6: 6700000 | AG6: 7299000 | AH6: 5913000 | AI6: 4142000 | AJ6: 4254000 | AK6: 8740946.064 | AL6: 3889315.355 | AM6: 4052000 | AN6: 7494000 | AO6: 6841000 | AP6: 655000 | AR6: 2511000 | AS6: 4613000 | AT6: 5748000 | AU6: 4852000 | AV6: 3036000 | AW6: 2179000 | AX6: 5898946.064 | AY6: 2593315.355 | AZ6: 2547000 | BA6: 5680000 | BB6: 3883000 | BC6: -430000 | BE6: 1166531.266 | BF6: 2583968.304 | BG6: 3189981.882 | BH6: 3770773.463 | BI6: 2230132.103 | BJ6: 241995.3038 | BK6: 5061823.822 | BL6: 1532753.871 | BM6: 2183174.957 | BN6: 2928506.484 | BO6: 2695531.405 | BP6: 39920.11266 | BR6: 1166531.266 | BS6: 2583968.304 | BT6: 3189981.882 | BU6: 3795883.463 | BV6: 2230132.103 | BW6: 241995.3038 | BX6: 5061823.822 | BY6: 1534753.871 | BZ6: 2183174.957 | CA6: 2928506.484 | CB6: 2695531.405 | CC6: 39920.11266
D7: adjustment | E7: -13147000 | F7: -10219000 | G7: -18242000 | H7: -11884000 | I7: -9112000 | J7: -13962000 | K7: -10154000 | L7: -13417000 | M7: -12247000 | N7: -14211000 | O7: -12556000 | P7: -13112000 | R7: -542000 | S7: 2274000 | T7: -3513000 | U7: -9374000 | V7: 1108000 | W7: -158000 | X7: 426053.9356 | Y7: -3050315.355 | Z7: -45000 | AA7: -781000 | AB7: -1605000 | AC7: 3054000 | AE7: -453000 | AF7: 2363000 | AG7: -3035111.111 | AH7: -8700388.889 | AI7: 645000 | AJ7: 483000 | AK7: 515053.9356 | AL7: -2926315.355 | AM7: 44000 | AN7: -601000 | AO7: -1574103.661 | AP7: 3039500 | AR7: -5764656 | AS7: 1749684.99 | AT7: -4255999.75 | AU7: -6388000 | AV7: 1066000 | AW7: -1118000 | AX7: 44053.93556 | AY7: -3510315.355 | AZ7: -328000 | BA7: -97000 | BB7: -1615000 | BC7: 3029000 | BE7: -5670157.058 | BF7: 1650982.252 | BG7: -3891103.24 | BH7: -6449656.442 | BI7: 1096764.348 | BJ7: -1152773.682 | BK7: 1080.283389 | BL7: -3442444.747 | BM7: -330292.9769 | BN7: -77974.6531 | BO7: -1648068.839 | BP7: 3045040.337 | BR7: -5573752.22 | BS7: 1771847.41 | BT7: -4317513.442 | BU7: -9704848.942 | BV7: 727644.3478 | BW7: 391346.3178 | BX7: 22080.28339 | BY7: -3325444.747 | BZ7: -258292.9769 | CA7: 67025.3469 | CB7: -1600732.37 | CC7: 3045040.337
B8: Segment Formula Systems | E8: 1263800000 | F8: 1322900000 | G8: 1327800000 | H8: 1488200000 | I8: 1486100000 | J8: 1567200000 | K8: 1768600000 | L8: 1732500000 | M8: 1862500000 | N8: 1775800000 | O8: 1859000000 | P8: 2064100000 | R8: 56800000 | S8: 69800000 | T8: 74800000 | U8: 99700000 | V8: 105000000 | W8: 109400000 | X8: 135000000 | Y8: 123300000 | Z8: 126893000 | AA8: 160507000 | AB8: 159000000 | AC8: 168200000 | AE8: 118103675.9 | AF8: 123554359.8 | AG8: 126526248.9 | AH8: 155249344.8 | AI8: 154312220.2 | AJ8: 156731041.3 | AK8: 187652290.6 | AL8: 173844233.5 | AM8: 185705432.1 | AN8: 207321764 | AO8: 213864462.3 | AP8: 235830302.4 | AR8: 32971321.06 | AS8: 45030678.94 | AT8: 44935000 | AU8: 65893000 | AV8: 60963000 | AW8: 75224000 | AX8: 85286000 | AY8: 81994000 | AZ8: 78333000 | BA8: 98430000 | BB8: 99585000 | BC8: 107083000 | BE8: 3352027.306 | BF8: 5155191.379 | BG8: 4273191.918 | BH8: 7869090.088 | BI8: 5952207.628 | BJ8: 8857314.729 | BK8: 8806254.977 | BL8: 8657110.955 | BM8: 7389284.423 | BN8: 11876023.65 | BO8: 10577491.26 | BP8: 10672479.53 | BR8: 10631090.3 | BS8: 11319105.83 | BT8: 10316918.24 | BU8: 14718032.06 | BV8: 11128723.83 | BW8: 13698780.87 | BX8: 14330324.1 | BY8: 14718730.15 | BZ8: 14909355.98 | CA8: 16833371.45 | CB8: 15740859.83 | CC8: 19004378.88
B9: Matrix IT | E9: 759908192 | F9: 773974079.7 | G9: 765809682.8 | H9: 885310052 | I9: 888804243.2 | J9: 935449905.1 | K9: 1066891860 | L9: 998489337.6 | M9: 1112976989 | N9: 995774161.7 | O9: 1080977636 | P9: 1206625081 | R9: 52733426.52 | S9: 53170361.63 | T9: 50707810.65 | U9: 69334136.72 | V9: 62884255.45 | W9: 63016636.19 | X9: 75943784.22 | Y9: 72032917.69 | Z9: 77710252.65 | AA9: 76841471.94 | AB9: 80939794.24 | AC9: 91810593.72 | AE9: 56373425.07 | AF9: 57451517.06 | AG9: 54447627.93 | AH9: 74626498.96 | AI9: 69610473.66 | AJ9: 69441391.73 | AK9: 83105410.71 | AL9: 78414439.92 | AM9: 84147717.86 | AN9: 83296847.44 | AO9: 88921494.54 | AP9: 99774329.96 | AR9: 34345845.84 | AS9: 34687108.95 | AT9: 31351500.5 | AU9: 44622358.29 | AV9: 39895166.82 | AW9: 39682481.85 | AX9: 49026859.63 | AY9: 51907383.71 | AZ9: 49169004.41 | BA9: 48342710.25 | BB9: 50133264.49 | BC9: 70052743.33 | BE9: 4339318.363 | BF9: 4293513.774 | BG9: 3876789.904 | BH9: 5498629.268 | BI9: 4814369.379 | BJ9: 4662835.157 | BK9: 5763528.203 | BL9: 6185929.06 | BM9: 5636167.369 | BN9: 5679315.75 | BO9: 5729241.496 | BP9: 7649250.548 | BR9: 5025176.544 | BS9: 5310002.299 | BT9: 4841869.986 | BU9: 6562281.789 | BV9: 5602516.477 | BW9: 5514801.167 | BX9: 6683084.843 | BY9: 6831457.202 | BZ9: 6073807.565 | CA9: 6682624.093 | CB9: 6207042.2 | CC9: 7684270.064
B10: Magic Software | E10: 236243311.3 | F10: 256256989 | G10: 264383788.9 | H10: 273324710 | I10: 271624575 | J10: 293085764 | K10: 337158171.4 | L10: 349840772.1 | M10: 339162772.2 | N10: 351437968.4 | O10: 358384043.3 | P10: 400349858.8 | R10: 25638257.42 | S10: 29089081.48 | T10: 28269706.46 | U10: 31698428.13 | V10: 31735307.65 | W10: 30437457 | X10: 35671641.79 | Y10: 33826256.86 | Z10: 34714809.62 | AA10: 42058373.51 | AB10: 42898448.78 | AC10: 48782010.65 | AE10: 31808108.98 | AF10: 35658794.38 | AG10: 35465706.83 | AH10: 38183396.74 | AI10: 37844798.87 | AJ10: 37852031.07 | AK10: 45460698.05 | AL10: 43709487.52 | AM10: 41327344.35 | AN10: 49540962.5 | AO10: 51673798.69 | AP10: 57495374.83 | AR10: 19614097.03 | AS10: 24685802.79 | AT10: 22487454.28 | AU10: 22962035.05 | AV10: 24698989.58 | AW10: 23065808.74 | AX10: 25986436.52 | AY10: 22854916.56 | AZ10: 27950629.57 | BA10: 27243542.48 | BB10: 31212389.42 | BC10: 28523623.47 | BE10: 1923780.68 | BF10: 2569075.479 | BG10: 2250208.041 | BH10: 2055315.533 | BI10: 2363685.408 | BJ10: 2057419.928 | BK10: 2289718.732 | BL10: 2062692.374 | BM10: 2586290.328 | BN10: 2744020.4 | BO10: 3052885.832 | BP10: 2744059.384 | BR10: 2513230.441 | BS10: 3196527.957 | BT10: 2942704.435 | BU10: 2633755.938 | BV10: 2882327.865 | BW10: 2553219.032 | BX10: 3153635.277 | BY10: 3220244.88 | BZ10: 3479181.774 | CA10: 3855995.786 | CB10: 3743265.7 | CC10: 4436028.344
B11: Sapiens Int. | E11: 240546283 | F11: 263261260.5 | G11: 268479678.1 | H11: 277241569.9 | I11: 290482664 | J11: 302516301.9 | K11: 325231382.6 | L11: 333644223.8 | M11: 361295009.7 | N11: 377032101.3 | O11: 368182048.4 | P11: 388555475.7 | R11: 17547315.34 | S11: 17810254.85 | T11: 24342058.94 | U11: 27176939.1 | V11: 32325450.45 | W11: 37104407.29 | X11: 45640974.26 | Y11: 37138056.15 | Z11: 42867741.69 | AA11: 54129229.5 | AB11: 53095184.04 | AC11: 45377011.35 | AE11: 29202608.79 | AF11: 30448114.28 | AG11: 35733781.21 | AH11: 39384488.45 | AI11: 43314968.71 | AJ11: 47241261.98 | AK11: 56907812.88 | AL11: 47343498.48 | AM11: 54983405.79 | AN11: 69230625.98 | AO11: 66642096.85 | AP11: 66242324.16 | AR11: 10798087.27 | AS11: 6741688.76 | AT11: 18630461.96 | AU11: 16616487.98 | AV11: 20129165.81 | AW11: 24156931.85 | AX11: 31109774.74 | AY11: 26315044.61 | AZ11: 25675949.55 | BA11: 35771551.28 | BB11: 37128056.84 | BC11: 28583651.88 | BE11: 1364406.99 | BF11: 809498.1944 | BG11: 2350251.507 | BH11: 2062352.506 | BI11: 2488614.14 | BJ11: 2931081.514 | BK11: 3749456.18 | BL11: 3146533.394 | BM11: 3097616.354 | BN11: 4356791.704 | BO11: 4422217.857 | BP11: 3300509.664 | BR11: 2633408.464 | BS11: 2219936.365 | BT11: 3460949.149 | BU11: 3299279.487 | BV11: 3586421.661 | BW11: 3909014.464 | BX11: 4857969.546 | BY11: 4359635.299 | BZ11: 4297431.613 | CA11: 6355257.173 | CB11: 5537830.143 | CC11: 5903065.221
B12: Other | C12: Other | D12: Other | E12: 27102213.67 | F12: 29407670.83 | G12: 29126850.2 | H12: 52323668.15 | I12: 35188517.82 | J12: 36148029.12 | K12: 39318586.08 | L12: 50525666.49 | M12: 49065228.85 | N12: 51555768.54 | O12: 51456272.72 | P12: 68569584.09 | R12: -39118999.28 | S12: -30269697.96 | T12: -28519576.06 | U12: -28509503.96 | V12: -21945013.55 | W12: -21158500.48 | X12: -22256400.27 | Y12: -19697230.7 | Z12: -28399803.96 | AA12: -12522074.95 | AB12: -17933427.07 | AC12: -17769615.71 | AE12: 719533.0699 | AF12: -4065.927892 | AG12: 879132.9052 | AH12: 3054960.651 | AI12: 3541978.96 | AJ12: 2196356.53 | AK12: 2178368.928 | AL12: 4376807.536 | AM12: 5246964.076 | AN12: 5253328.077 | AO12: 6627072.173 | AP12: 12318273.48 | AR12: -31786709.07 | AS12: -21083921.56 | AT12: -27534416.74 | AU12: -18307881.32 | AV12: -23760322.21 | AW12: -11681222.43 | AX12: -20837070.89 | AY12: -19083344.87 | AZ12: -24462583.53 | BA12: -12927804 | BB12: -18888710.76 | BC12: -20077018.68 | BE12: -4275478.727 | BF12: -2516896.069 | BG12: -4204057.533 | BH12: -1747207.218 | BI12: -3714461.3 | BJ12: -794021.8696 | BK12: -2996448.138 | BL12: -2738043.874 | BM12: -3930789.628 | BN12: -904104.2069 | BO12: -2626853.921 | BP12: -3021340.063 | BR12: 459274.8471 | BS12: 592639.204 | BT12: -928605.3254 | BU12: 2222714.841 | BV12: -942542.1743 | BW12: 1721746.207 | BX12: -364365.5643 | BY12: 307392.7717 | BZ12: 1058935.027 | CA12: -60505.60482 | CB12: 252721.7836 | CC12: 981015.2557
B13: Segment Asseco International | C13: Segment Asseco International | D13: Segment Asseco International | E13: 574000000 | F13: 644300000 | G13: 586800000 | H13: 787100000 | I13: 673600000 | J13: 672600000 | K13: 686600000 | L13: 896600000 | M13: 754200000 | N13: 749300000 | O13: 720700000 | P13: 1001500000 | R13: 54300000 | S13: 69600000 | T13: 58900000 | U13: 91100000 | V13: 76400000 | W13: 74400000 | X13: 88200000 | Y13: 109300000 | Z13: 81226000 | AA13: 91374000 | AB13: 79200000 | AC13: 137200000 | AE13: 56814525.93 | AF13: 72236627.2 | AG13: 61466614.83 | AH13: 94887053.9 | AI13: 79377654.77 | AJ13: 77439419.69 | AK13: 91055961.96 | AL13: 113673580.3 | AM13: 84701068.11 | AN13: 95545821.76 | AO13: 82867317.56 | AP13: 140777693.8 | AR13: 43133755.2 | AS13: 59333215.81 | AT13: 52325999.75 | AU13: 80654000 | AV13: 60158000 | AW13: 57530000 | AX13: 70683000 | AY13: 91242000 | AZ13: 66208000 | BA13: 73696000 | BB13: 62811000 | BC13: 112491000 | BE13: 26347970.54 | BF13: 38140689.12 | BG13: 31806986.39 | BH13: 53254700.86 | BI13: 38258739.01 | BJ13: 36649428.24 | BK13: 45006931.67 | BL13: 55170796.33 | BM13: 42684483.16 | BN13: 46497243.69 | BO13: 36369218.18 | BP13: 70349163.98 | BR13: 27943842.03 | BS13: 40172958.66 | BT13: 33123653.55 | BU13: 50123545.19 | BV13: 40129677.91 | BW13: 37927365.33 | BX13: 47944271.18 | BY13: 58076366.55 | BZ13: 44877430.24 | CA13: 49169205.4 | CB13: 39423092 | CC13: 72247732.14
C14: Central Europe | D14: Central Europe | E14: 272268722.4 | F14: 306810471.4 | G14: 278464465.4 | H14: 355493822.5 | I14: 319965093.5 | J14: 315722979.1 | K14: 295402297.3 | L14: 403211812.6 | M14: 321336321.9 | N14: 320868428.1 | O14: 302059924.1 | P14: 387960701.3 | R14: 32716872 | S14: 39714131.25 | T14: 35683895.47 | U14: 52965473.62 | V14: 44882273.15 | W14: 44591829.69 | X14: 48198238.28 | Y14: 60006358.04 | Z14: 46771881.42 | AA14: 49114706.08 | AB14: 36715212.03 | AC14: 73639001.47 | AE14: 33180516.39 | AF14: 40200795.8 | AG14: 36165351.5 | AH14: 54572172.3 | AI14: 45681274.26 | AJ14: 45310689.8 | AK14: 49104832.51 | AL14: 60710351.92 | AM14: 47631086.3 | AN14: 49900938.03 | AO14: 37748302.75 | AP14: 74512451.44 | AR14: 24251433.6 | AS14: 30034723.65 | AT14: 28818292.01 | AU14: 49498521.03 | AV14: 35216446.06 | AW14: 35347429.92 | AX14: 37607556.94 | AY14: 50146177.79 | AZ14: 36273596.54 | BA14: 40848709.71 | BB14: 28457978.01 | BC14: 59614588.49 | BE14: 15849945.54 | BF14: 20967071.34 | BG14: 19976276.55 | BH14: 35116908.49 | BI14: 25210862.51 | BJ14: 25590339.96 | BK14: 27190610.78 | BL14: 32113971.02 | BM14: 25968872.77 | BN14: 29762533.09 | BO14: 19078212.66 | BP14: 40019629.22 | BR14: 16032404.27 | BS14: 21540272.06 | BT14: 20238713.94 | BU14: 29359731.06 | BV14: 25731806.89 | BW14: 26231760.72 | BX14: 27823519.03 | BY14: 32453269.17 | BZ14: 26533957.42 | CA14: 30236823.91 | CB14: 19748579.7 | CC14: 40572497.04
C15: South Eastern Europe | D15: South Eastern Europe | E15: 156138451.2 | F15: 183755656.2 | G15: 173909809.4 | H15: 261490760.7 | I15: 187076182.9 | J15: 198384469.2 | K15: 228834687 | L15: 275797340.8 | M15: 231335950 | N15: 233791721.2 | O15: 227324204 | P15: 335951306.6 | R15: 13409180 | S15: 18823988.5 | T15: 19447109.62 | U15: 26719237.8 | V15: 21364359.67 | W15: 22562279.15 | X15: 29345537.8 | Y15: 34327249.76 | Z15: 27916293.55 | AA15: 35207192.7 | AB15: 36707728.5 | AC15: 44057716.18 | AE15: 14482315.94 | AF15: 19938634.15 | AG15: 20559389.61 | AH15: 27891700.41 | AI15: 22537320.33 | AJ15: 23881732.13 | AK15: 30130583.69 | AL15: 35599991.17 | AM15: 29226465.57 | AN15: 36634154.97 | AO15: 37705792.12 | AP15: 45085429.28 | AR15: 11557975.2 | AS15: 16113672.65 | AT15: 18805958.24 | AU15: 21352211.92 | AV15: 18348450.36 | AW15: 18238050.73 | AX15: 24661683.6 | AY15: 27863465.66 | AZ15: 23291420.98 | BA15: 27245562.77 | BB15: 31216206.4 | BC15: 35134195.44 | BE15: 5872741.388 | BF15: 8281768.204 | BG15: 9586954.823 | BH15: 10991226.86 | BI15: 9169111.275 | BJ15: 9098016.095 | BK15: 12520556.83 | BL15: 14260492.27 | BM15: 11909097.48 | BN15: 13625999.34 | BO15: 15924260.16 | BP15: 17610676.86 | BR15: 6432126.532 | BS15: 8862682.555 | BT15: 10166609.33 | BU15: 11597289.72 | BV15: 9839457.837 | BW15: 8643000.659 | BX15: 12924768.84 | BY15: 15104052.18 | BZ15: 12289246.44 | CA15: 14634385.63 | CB15: 17117643.84 | CC15: 18012300.26
B16: Western Europe | C16: Western Europe | D16: Western Europe | E16: 144236434 | F16: 155543111.3 | G16: 131496770.3 | H16: 168886672.8 | I16: 163936458.3 | J16: 156649012.5 | K16: 161073405.5 | L16: 214516797 | M16: 199581427.9 | N16: 192478798.3 | O16: 190199669.1 | P16: 274425201 | R16: 11132100.8 | S16: 13227148.75 | T16: 6120649.518 | U16: 14635022.73 | V16: 12773330.23 | W16: 10223366.66 | X16: 14836708.45 | Y16: 16498255.96 | Z16: 9306896.604 | AA16: 10216838.4 | AB16: 8608496.944 | AC16: 21772529.73 | AE16: 12109846.4 | AF16: 14233465.75 | AG16: 7122528.334 | AH16: 15642915.34 | AI16: 13779023.23 | AJ16: 11224473.25 | AK16: 16001030.3 | AL16: 18872100.98 | AM16: 10612587.81 | AN16: 12175465.94 | AO16: 10244660.16 | AP16: 23449060.46 | AR16: 11382232 | AS16: 15062699.4 | AT16: 5953954.835 | AU16: 13403554.39 | AV16: 11053027.25 | AW16: 8177801.134 | AX16: 13331893.06 | AY16: 12032879.7 | AZ16: 11390727.02 | BA16: 8803636.73 | BB16: 6871580.186 | BC16: 19111843.88 | BE16: 8209680.37 | BF16: 11167388.33 | BG16: 3747467.25 | BH16: 10211690.13 | BI16: 8123681.372 | BJ16: 6242363.181 | BK16: 10160598.87 | BL16: 8243553.298 | BM16: 9764326.039 | BN16: 6546670.579 | BO16: 5141889.193 | BP16: 13885890.93 | BR16: 8745739.173 | BS16: 11725819.86 | BT16: 4290049.163 | BU16: 11022319.81 | BV16: 8788788.328 | BW16: 6797418.581 | BX16: 11161881.21 | BY16: 9618873.259 | BZ16: 10693520.97 | CA16: 7424087.325 | CB16: 6057333.088 | CC16: 14554647.81
B17: Eastern Europe | C17: Eastern Europe | D17: Eastern Europe | E17: 1015351.2 | F17: 2168475.75 | G17: 2315919.845 | H17: 1062771.089 | I17: 2505636.814 | J17: 1645179.421 | K17: 1372794.735 | L17: 1410823.41 | M17: 1217765.876 | N17: 1660164.124 | O17: 463105.7584 | P17: 2162178.951 | R17: -480516 | S17: 408445.35 | T17: 237956.2842 | U17: 51727.1175 | V17: 189104.6652 | W17: 578453.2955 | X17: 163097.2417 | Y17: 273837.1216 | Z17: 92321.6007 | AA17: 600513.3993 | AB17: -386277.1977 | AC17: -29159.9877 | AE17: -480516 | AF17: 408445.35 | AG17: 237956.2842 | AH17: 51727.1175 | AI17: 189104.6652 | AJ17: 578453.2955 | AK17: 163097.2417 | AL17: 273837.1216 | AM17: 92321.6007 | AN17: 600513.3993 | AO17: -386277.1977 | AP17: -29159.9877 | AR17: -1535973.84 | AS17: 955169.19 | AT17: 431932.927 | AU17: 588364.1431 | AV17: -1719133.32 | AW17: -677877.2947 | AX17: -192451.3142 | AY17: 3445511.831 | AZ17: -1973923.748 | BA17: 899141.2483 | BB17: -560192.4456 | BC17: 1115972.583 | BE17: -1261723.931 | BF17: 777088.7792 | BG17: 255937.5442 | BH17: 598524.6894 | BI17: -1817270.574 | BJ17: -975186.5737 | BK17: -78313.09589 | BL17: 3134485.047 | BM17: -2078401.978 | BN17: 646870.5133 | BO17: -572205.8418 | BP17: 1318702.01 | BR17: -975755.1233 | BS17: 1141048.243 | BT17: 566930.6899 | BU17: 908290.0719 | BV17: -1692026.115 | BW17: -652585.0733 | BX17: 259623.8058 | BY17: 3464658.977 | BZ17: -1759883.437 | CA17: 958738.3682 | CB17: -297526.631 | CC17: 1594022.058
B18: Other | C18: Other | D18: Other | E18: 341041.2 | F18: -3977714.7 | G18: 613035.0646 | H18: 165972.9127 | I18: 116628.3901 | J18: 198359.7389 | K18: -83184.5262 | L18: 1663226.171 | M18: 728534.2753 | N18: 500888.2247 | O18: 653097.0267 | P18: 1000612.074 | R18: -2477636.8 | S18: -2573713.85 | T18: -2589610.889 | U18: -3271461.269 | V18: -2809067.719 | W18: -3555928.793 | X18: -4343581.777 | Y18: -1805700.882 | Z18: -2861393.171 | AA18: -3765250.579 | AB18: -2445160.274 | AC18: -2240087.394 | AE18: -2477636.8 | AF18: -2544713.85 | AG18: -2618610.889 | AH18: -3271461.269 | AI18: -2809067.719 | AJ18: -3555928.793 | AK18: -4343581.777 | AL18: -1782700.882 | AM18: -2861393.171 | AN18: -3765250.579 | AO18: -2445160.274 | AP18: -2240087.394 | AR18: -2521911.76 | AS18: -2833049.08 | AT18: -1684138.257 | AU18: -4188651.487 | AV18: -2740790.346 | AW18: -3555404.491 | AX18: -4725682.278 | AY18: -2246034.983 | AZ18: -2773820.79 | BA18: -4101050.46 | BB18: -3174572.146 | BC18: -2485600.395 | BE18: -2322672.82 | BF18: -3052627.538 | BG18: -1759649.778 | BH18: -3663649.305 | BI18: -2427645.572 | BJ18: -3306104.427 | BK18: -4786521.706 | BL18: -2581705.308 | BM18: -2879411.148 | BN18: -4084829.825 | BO18: -3202937.996 | BP18: -2485735.04 | BR18: -2290672.82 | BS18: -3096864.056 | BT18: -2138649.575 | BU18: -2764085.468 | BV18: -2538349.036 | BW18: -3092229.563 | BX18: -4225521.706 | BY18: -2564487.034 | BZ18: -2879411.148 | CA18: -4084829.825 | CB18: -3202937.996 | CC18: -2485735.04
B19: adjustment | C19: adjustment | D19: adjustment | E19: -5100000 | F19: -8400000 | G19: -4400000 | H19: -7200000 | I19: -6100000 | J19: -6200000 | K19: -6900000 | L19: -9500000 | M19: -6000000 | N19: -5700000 | O19: -6000000 | P19: -11300000 | R19: 400000 | S19: -300000 | T19: 1300000 | U19: -300000 | V19: -3.278255463e-07 | W19: 1000000 | X19: -300000 | Y19: -200000 | Z19: -719000 | AA19: -581000 | AB19: 1000000 | AC19: -2700000 | AE19: 400000 | AF19: -300000 | AG19: 1300000 | AH19: -300000 | AI19: -3.278255463e-07 | AJ19: 1000000 | AK19: -300000 | AL19: -232000 | AM19: -719000 | AN19: -581000 | AO19: 1000000 | AP19: -2718000 | AR19: 392579.7379 | AS19: -351579.7379 | AT19: 1398000 | AU19: -317000 | AV19: 33000 | AW19: 1117000 | AX19: -255000 | AY19: -33000 | AZ19: -539000 | BA19: -435000 | BB19: 1221000 | BC19: -2723000 | BE19: 361182.1349 | BF19: -169988.1126 | BG19: 1470453.748 | BH19: -147797.8049 | BI19: 113905.2298 | BJ19: 1035195.181 | BK19: -217880.0745 | BL19: -129827.8369 | BM19: -505710.3856 | BN19: -342554.4117 | BO19: 983701.0531 | BP19: -2555744.43 | BR19: 361182.1349 | BS19: -169988.1126 | BT19: 1470453.748 | BU19: -147797.8049 | BV19: 69713.37019 | BW19: 1035195.181 | BX19: -217880.0745 | BY19: -85635.97731 | BZ19: -505710.3856 | CA19: -342554.4117 | CB19: 983701.0531 | CC19: -2553744.43
B20: Asseco Group | E20: 2149000000 | F20: 2310900000 | G20: 2218400000 | H20: 2650300000 | I20: 2452200000 | J20: 2538700000 | K20: 2738400000 | L20: 2938100000 | M20: 2919500000 | N20: 2850000000 | O20: 2937800000 | P20: 3483000000 | R20: 167300000 | S20: 203800000 | T20: 187600000 | U20: 238100000 | V20: 224700000 | W20: 228900000 | X20: 261100000 | Y20: 259900000 | Z20: 250100000 | AA20: 303400000 | AB20: 299400000 | AC20: 362500000 | AE20: 235333201.8 | AF20: 264407987 | AG20: 246494752.6 | AH20: 302238009.8 | AI20: 280652875 | AJ20: 284038461 | AK20: 320823252.5 | AL20: 318836813.8 | AM20: 316402500.2 | AN20: 358492585.7 | AO20: 361977676.2 | AP20: 441939496.2 | AR20: 116600000 | AS20: 151400000 | AT20: 141300000 | AU20: 184400000 | AV20: 157200000 | AW20: 169400000 | AX20: 181500000 | AY20: 194200000 | AZ20: 176500000 | BA20: 211500000 | BB20: 207800000 | BC20: 272100000 | BE20: 68900000 | BF20: 88400000 | BG20: 78000000 | BH20: 98000000 | BI20: 79600000 | BJ20: 80100000 | BK20: 78500000 | BL20: 83700000 | BM20: 81700000 | BN20: 95100000 | BO20: 90900000 | BP20: 134200000 | BR20: 81170041.63 | BS20: 100121853.3 | BT20: 88291603.33 | BU20: 101831383.4 | BV20: 89573223.7 | BW20: 90316463.23 | BX20: 90325408.63 | BY20: 96014470.82 | BZ20: 94665018.64 | CA20: 106054309.5 | CB20: 102416488.9 | CC20: 151150917.5

Sheet RevenuesAndCosts
A1: Przychody ze sprzedaży | B1: Sales revenues | C1: Q1 2018 | D1: Q2 2018 | E1: Q3 2018 | F1: Q4 2018 | G1: Q1 2019 | H1: Q2 2019 | I1: Q3 2019 | J1: Q4 2019 | K1: Q1 2020 | L1: Q2 2020 | M1: Q3 2020 | N1: Q4'2020
C2: mln PLN | D2: mln PLN | E2: mln PLN | F2: mln PLN | G2: mln PLN | H2: mln PLN | I2: mln PLN | J2: mln PLN | K2: mln PLN | L2: mln PLN | M2: mln PLN | N2: mln PLN
A4: Przychody ze sprzedaży według rodzaju | B4: Sales revenues by type of products
A5: Oprogramowanie i usługi własne | B5: Proprietary software and services | C5: 1729 | D5: 1871.3 | E5: 1853.5 | F5: 2051 | G5: 1981.2 | H5: 2092.8 | I5: 2245.9 | J5: 2328 | K5: 2353.9 | L5: 2298.8 | M5: 2330.4 | N5: 2651.3
A6: Oprogramowanie i usługi obce | B6: Third-party software and services | C6: 145.6 | D6: 169.1 | E6: 127.4 | F6: 235.3 | G6: 174.9 | H6: 183.4 | I6: 193.4 | J6: 230.4 | K6: 186.8 | L6: 207.1 | M6: 183.8 | N6: 276.7
A7: Sprzęt i infrastruktura | B7: Hardware and infrastructure | C7: 274.4 | D7: 270.5 | E7: 237.5 | F7: 364 | G7: 296.1 | H7: 262.5 | I7: 299.1 | J7: 379.7 | K7: 378.8 | L7: 344.1 | M7: 423.6 | N7: 555
A8: Razem | B8: Total | C8: =SUM(C5:C7) -> 2149 | D8: 2310.9 | E8: 2218.4 | F8: 2650.3 | G8: =SUM(G5:G7) -> 2452.2 | H8: =SUM(H5:H7) -> 2538.7 | I8: 2738.4 | J8: 2938.1 | K8: 2919.5 | L8: 2850 | M8: 2937.8 | N8: 3483
A10: Przychody ze sprzedaży według sektorów | B10: Sales revenues by sectors
A11: Bankowość i finanse | B11: Banking and finance | C11: 820 | D11: 901.6 | E11: 930.6 | F11: 1041 | G11: 957.3 | H11: 1023.4 | I11: 1004.4 | J11: 1076.5 | K11: 1062.2 | L11: 1068.6 | M11: 1066.4 | N11: 1210.7
A12: Przedsiębiorstwa | B12: General business | C12: 860.5 | D12: 934.6 | E12: 806.9 | F12: 947.3 | G12: 921 | H12: 921.8 | I12: 1093.9 | J12: 1127.9 | K12: 1152.7 | L12: 1117.9 | M12: 1064.4 | N12: 1403.6
A13: Instytucje Publiczne | B13: Public Institutions | C13: 468.5 | D13: 474.7 | E13: 480.9 | F13: 662 | G13: 573.9 | H13: 593.5 | I13: 640.1 | J13: 733.7 | K13: 704.6 | L13: 663.5 | M13: 807 | N13: 868.7
A14: Razem | B14: Total | C14: =SUM(C11:C13) -> 2149 | D14: 2310.9 | E14: 2218.4 | F14: 2650.3 | G14: =SUM(G11:G13) -> 2452.2 | H14: =SUM(H11:H13) -> 2538.7 | I14: 2738.4 | J14: 2938.1 | K14: 2919.5 | L14: 2850 | M14: 2937.8 | N14: 3483
A16: Struktura kosztów operacyjnych | B16: Operating costs
A17: Wartość odsprzedanych towarów, materiałów i usług obcych (COGS) | B17: Cost of goods, materials and third-party services sold | C17: -362.5 | D17: -365.3 | E17: -319.1 | F17: -478.2 | G17: -400.7 | H17: -363.6 | I17: -425.8 | J17: -505.1 | K17: -476.8 | L17: -461 | M17: -503.1 | N17: -699.3
A18: Świadczenia na rzecz pracowników | B18: Employee benefits | C18: -1081 | D18: -1132.5 | E18: -1111 | F18: -1246.8 | G18: -1226.1 | H18: -1309.9 | I18: -1337.8 | J18: -1386.9 | K18: -1473 | L18: -1395.6 | M18: -1433.7 | N18: -1649
A19: Amortyzacja | B19: Depreciation and amortization | C19: -115.1 | D19: -110.9 | E19: -111 | F19: -114.1 | G19: -142.2 | H19: -156.5 | I19: -162.7 | J19: -167.4 | K19: -167.7 | L19: -171.4 | M19: -175.8 | N19: -184.6
A20: Usługi obce | B20: External services | C20: -276.2 | D20: -315.5 | E20: -312.7 | F20: -362.6 | G20: -320.3 | H20: -333.5 | I20: -390.3 | J20: -436.2 | K20: -391.1 | L20: -375.3 | M20: -383.7 | N20: -453.5
A21: Pozostałe | B21: Other | C21: -143.1 | D21: -180.9 | E21: -176.6 | F21: -204.3 | G21: -133.2 | H21: -143.8 | I21: -160.7 | J21: -178.8 | K21: -155.9 | L21: -139.6 | M21: -138.5 | N21: -129.1
A22: Razem | B22: Total | C22: =SUM(C17:C21) -> -1977.9 | D22: -2105.1 | E22: -2030.4 | F22: -2406 | G22: =SUM(G17:G21) -> -2222.5 | H22: =SUM(H17:H21) -> -2307.3 | I22: -2477.3 | J22: -2674.4 | K22: -2664.5 | L22: -2542.9 | M22: -2634.8 | N22: -3115.5

Sheet Exchange Rates
A1: Kursy walut | B1: Exchange rates
A3: Waluta | B3: Currency | C3: EUR/PLN | D3: USD/PLN | E3: NIS/PLN | F3: RUB/PLN
A5: Kurs średni 2014 | B5: Average exchange rate 2014 | C5: 4.1893 | D5: 3.1784 | E5: 0.8846 | F5: 0.0821
A6: Kurs otwarcia 2014 | B6: Opening exchange rate 2014 | C6: 4.1472 | D6: 3.012 | E6: 0.8678 | F6: 0.0914
A7: Kurs zamknięcia 2014 | B7: Closing exchange rate 2014 | C7: 4.2623 | D7: 3.5072 | E7: 0.9018 | F7: 0.0602
A9: Kurs otwarcia 2015 | B9: Opening exchange rate 2015 | C9: 4.2623 | D9: 3.5072 | E9: 0.9018 | F9: 0.0602
A10: Kurs średni Q1 2015 | B10: Average exchange rate Q1 2015 | C10: 4.1489 | D10: 3.7436 | E10: 0.9462 | F10: 0.06
A11: Kurs zamknięcia Q1 2015 | B11: Closing exchange rate Q1 2015 | C11: 4.089 | D11: 3.8125 | E11: 0.9579 | F11: 0.0661
A13: Kurs średni Q1-Q2 2015 | B13: Average exchange rate Q1-2 2015 | C13: 4.1341333 | D13: 3.7268667 | E13: 0.9566667 | F13: 0.06485
A14: Kurs zamknięcia Q2 2015 | B14: Closing exchange rate Q2 2015 | C14: 4.1944 | D14: 3.7645 | E14: 0.9985 | F14: 0.0676
A16: Kurs średni Q1-Q3 2015 | B16: Average exchange rate Q1-Q3 2015 | C16: 4.1585111 | D16: 3.7452778 | E16: 0.9628556 | F16: 0.0628556
A17: Kurs zamknięcia Q3 2015 | B17: Closing exchange rate Q3 2015 | C17: 4.2386 | D17: 3.7754 | E17: 0.9619 | F17: 0.0576
A19: Kurs średni Q1-Q4 2015 | B19: Average exchange rate Q1-Q4 2015 | C19: 4.1847667 | D19: 3.7928167 | E19: 0.9757415 | F19: 0.061625
A20: Kurs zamknięcia Q4 2015 | B20: Closing exchange rate Q4 2015 | C20: 4.2615 | D20: 3.9011 | E20: 0.9997693 | F20: 0.0528
A22: Kurs średni Q1 2016 | B22: Average exchange rate Q1 2016 | C22: 4.3559333 | D22: 3.9416 | E22: =1.0167 -> 1.0167 | F22: 0.0539333
A23: Kurs zamknięcia Q1 2016 | B23: Closing exchange rate Q1 2016 | C23: 4.2684 | D23: 3.759 | E23: 0.9981 | F23: 0.0555
A25: Kurs średni Q1-Q2 2016 | B25: Average exchange rate Q1-Q2 2016 | C25: 4.3805167 | D25: 3.9359667 | E25: 1.0229468 | F25: 0.05725
A26: Kurs zamknięcia Q2 2016 | B26: Closing exchange rate Q2 2016 | C26: 4.4255 | D26: 3.9803 | E26: 1.0349194 | F26: 0.062
A28: Kurs średni Q1-Q3 2016 | B28: Average exchange rate Q1-Q3 2016 | C28: 4.3687778 | D28: 3.9240222 | E28: 1.0249222 | F28: 0.0581111
A29: Kurs zamknięcia Q3 2016 | B29: Closing exchange rate Q3 2016 | C29: 4.312 | D29: 3.8558 | E29: 1.0260245 | F29: 0.0609
A31: Kurs średni Q1-Q4 2016 | B31: Average exchange rate Q1-Q4 2016 | C31: 4.375675 | D31: 3.9680333 | E31: 1.0353283 | F31: 0.0598167
A32: Kurs zamknięcia Q4 2016 | B32: Closing exchange rate Q4 2016 | C32: 4.424 | D32: 4.1793 | E32: 1.0869441 | F32: 0.068
A34: Kurs średni Q1 2017 | B34: Average exchange rate Q1 2017 | C34: 4.2890667 | D34: 4.0223667 | E34: 1.0912259 | F34: 0.0693667
A35: Kurs zamknięcia Q1 2017 | B35: Closing exchange rate Q1 2017 | C35: 4.2198 | D35: 3.9455 | E35: 1.0863161 | F35: 0.0704
A37: Kurs średni Q1-Q2 2017 | B37: Average exchange rate Q1-Q2 2017 | C37: 4.2474 | D37: 3.8963833 | E37: 1.0753374 | F37: 0.0673833
A38: Kurs zamknięcia Q2 2017 | B38: Closing exchange rate Q2 2017 | C38: 4.2265 | D38: 3.7062 | E38: 1.0601259 | F38: 0.0624
A40: Kurs średni Q1-Q3 2017 | B40: Average exchange rate Q1-Q3 2017 | C40: 4.2566444 | D40: 3.8043111 | E40: 1.0558041 | F40: 0.0654556
A41: Kurs zamknięcia Q3 2017 | B41: Closing exchange rate Q3 2017 | C41: 4.3091 | D41: 3.6519 | E41: 1.0348257 | F41: 0.0631
A43: Kurs średni Q1-Q4 2017 | B43: Average exchange rate Q1-Q4 2017 | C43: 4.2446 | D43: 3.7439 | E43: 1.0466 | F43: 0.0644
A44: Kurs zamknięcia Q4 2017 | B44: Closing exchange rate Q4 2017 | C44: 4.1709 | D44: 3.4813 | E44: 1.0041 | F44: 0.0604
A46: Kurs średni Q1 2018 | B46: Average exchange rate Q1 2018 | C46: 4.1784 | D46: 3.3881 | E46: 0.977 | F46: 0.0598
A47: Kurs zamknięcia Q1 2018 | B47: Closing exchange rate Q1 2018 | C47: 4.2085 | D47: 3.4139 | E47: 0.9715 | F47: 0.0594
A49: Kurs średni Q1-Q2 2018 | B49: Average exchange rate Q1-Q2 2018 | C49: 4.23945 | D49: 3.5192167 | E49: 0.9952924 | F49: 0.05905
A50: Kurs zamknięcia Q2 2018 | B50: Closing exchange rate Q2 2018 | C50: 4.3616 | D50: 3.744 | E50: 1.0257534 | F50: 0.0597
A52: Kurs średni Q1-Q3 2018 | B52: Average exchange rate Q1-Q3 2018 | C52: 4.2534778 | D52: 3.5688444 | E52: 1.0002299 | F52: 0.0581111
A53: Kurs zamknięcia Q3 2018 | B53: Closing exchange rate Q3 2018 | C53: 4.2714 | D53: 3.6754 | E53: 1.0133444 | F53: 0.0561
A55: Kurs średni Q1-Q4 2018 | B55: Average exchange rate Q1-Q4 2018 | C55: 4.2669167 | D55: 3.622725 | E55: 1.0042799 | F55: 0.0576417
A56: Kurs zamknięcia Q4 2018 | B56: Closing exchange rate Q4 2018 | C56: 4.3 | D56: 3.7597 | E56: 1.0031217 | F56: 0.0541
A58: Kurs średni Q1 2019 | B58: Average exchange rate Q1 2019 | C58: 4.2978333 | D58: 3.7829667 | E58: 1.0433255 | F58: 0.058
A59: Kurs zamknięcia Q1 2019 | B59: Closing exchange rate Q1 2019 | C59: 4.3013 | D59: 3.8365 | E59: 1.0563051 | F59: 0.0593
A61: Kurs średni Q1-Q2 2019 | B61: Average exchange rate Q1-Q2 2019 | C61: 4.2880333 | D61: 3.7935667 | E61: 1.0496067 | F61: 0.0585333
A62: Kurs zamknięcia Q2 2019 | B62: Closing exchange rate Q2 2019 | C62: 4.252 | D62: 3.7336 | E62: 1.0469994 | F62: 0.0592
A64: Kurs średni Q1-Q3 2019 | B64: Average exchange rate Q1-Q3 2019 | C64: 4.3085889 | D64: 3.8426111 | E64: 1.0744856 | F64: 0.0592667
A65: Kurs zamknięcia Q3 2019 | B65: Closing exchange rate Q3 2019 | C65: 4.3736 | D65: 4 | E65: 1.1487651 | F65: 0.0618
A67: Kurs średni Q1-Q4 2019 | B67: Average exchange rate Q1-Q4 2019 | C67: 4.3018 | D67: 3.844 | E67: 1.0818 | F67: 0.0608
A68: Kurs zamknięcia Q4 2019 | B68: Closing exchange rate Q4 2019 | C68: 4.2585 | D68: 3.7977 | E68: 1.0989 | F68: 0.075
A70: Kurs średni Q1 2020 | B70: Average exchange rate Q1 2020 | C70: 4.3963 | D70: 3.9907 | E70: 1.1422 | F70: 0.0575
A71: Kurs zamknięcia Q1 2020 | B71: Closing exchange rate Q1 2020 | C71: 4.5523 | D71: 4.1466 | E71: 1.1631 | F71: 0.0528
A73: Kurs średni Q1-Q2 2020 | B73: Average exchange rate Q1-Q2 2020 | C73: 4.44125 | D73: 4.02143 | E73: 1.1517113 | F73: 0.0571667
A74: Kurs zamknięcia Q2 2020 | B74: Closing exchange rate Q2 2020 | C74: 4.466 | D74: 3.9806 | E74: 1.14847 | F74: 0.0564
A76: Kurs średni Q1-Q3 2020 | B76: Average exchange rate Q1-Q3 2020 | C76: 4.4429 | D76: 3.9344 | E76: 1.1235 | F76: 0.0547
A77: Kurs zamknięcia Q3 2020 | B77: Closing exchange rate Q3 2020 | C77: 4.5268 | D77: 3.8658 | E77: 1.136 | F77: 0.0493
A79: Kurs średni Q1-Q4 2020 | B79: Average exchange rate Q1-Q3 2020 | C79: 4.4742 | D79: 3.9045 | E79: 1.1398 | F79: 0.0535
A80: Kurs zamknięcia Q4 2020 | B80: Closing exchange rate Q3 2020 | C80: 4.6148 | D80: 3.7584 | E80: 1.169 | F80: 0.0501
